Workbook

Sheet INTRO
B2: INCOME TAX ASSESMENT FOR FINANCIAL YEAR 2020-21
B3: HOW TO USE
C4: राजस्थान राज्य कर्मचारियों के लिए आयकर आकलन बाबत इस UTILITY का प्रयोग किया जा सकता है । FILE को SAVE करने के लिए अपनी सुविधा से नाम देकर SAVE AS से Excel Macro- Enable Workbook के रूप में Save करें। file को open करते समय Enable Macro करें।यह excel utility केवल मात्र राज्य कार्मिको के income tax assesment के लिए सहायतार्थ तैयार की गई है ।यद्यपि इसे तैयार करने में पूर्ण सावधानी बरती गई है फिर भी किसी भूल चूक के लिए तैयार कर्ता उत्तरदायी नहीं है । किसी भी गणना के लिए त्रुटि पाए जाने पर आयकर विभाग के नियम मान्य होंगे किसी प्रकार की तकनीकी कमी पाए जाने पर नीचे दिये गए EMAIL द्वारा अवगत कराने का श्रम करावे।(PLEASE USE LATEST VERSION OF THAT IS OFFICE 2010 AND ABOVE FOR BEST RESULT)
B5: 1. First Enable Macro whenever open file 2.Install Devlys 010 Hindi font in your computer for view Assesment Sheet
B6: 1. Data Entry Sheet :- | C6: Details शीट में कार्मिक की सामान्य सूचना,वेतन भत्ते ,कटौतियों और वेतन से एवं सामान्य आयकर छूट हेतु जमा का विवरण संबन्धित कॉलम में भरना है।शीट में महत्वपूर्ण स्थान पर आवश्यक निर्देश दिये गए है।वेतन से income tax कटौती को आपको manually MONTHLY भरना है।
B7: 2. SALARY SHEET | C7: सर्वप्रथम Refresh Salary बटन पर क्लिक कर आप द्वारा Data Entry शीट में भरे data अनुसार सैलरी शीट तैयार हो जाएगी ।यदि कोई बदलाव अपेक्षित है तो शीट मे आपकी आवश्यकता अनुसार कर सकते है।Refresh Salary बटन को क्लिक करने पर पुनः प्रारम्भिक अवस्था मे आ जाएगी । WHITE सेल में आवश्यकता अनुसार प्रविष्टि कर सकते है ।अन्य भत्ते एवं कटौती आप SALARY SHEET में MANUALLY कर सकते है।इसका प्रिंट लेना है ।
B8: 3. Assesment sheet | C8: Assesment Sheet Auto generate है।आप OLD REGIME या NEW REGIME में से किसी एक का चुनाव option बटन करे और आपके चुनाव अनुसार Assesment form रिपोर्ट तैयार प्राप्त करे । OLD REGIME या NEW REGIME में तुलनात्मक कौनसा चुनाव आपके लिए बेहतर की रिपोर्ट भी आप COMAPARISSION के द्वारा देख सकते है।इसका प्रिंट लेना है।
B9: 4. HRA SHEET | C9: यदि आप complete year के लिए HRA छूट के लिए पात्र नहीं है और Partially HRA की छूट लेना चाहते है तो इस शीट में जिन महीनों के लिए छूट प्राप्त करना चाहते है उनके सामने "YES" चुने और Data Entry Sheet मे Dropdown से "Partially" चुने तथा Data Entry Sheet में B15 cell मे आप द्वारा भुगतान किए गए किराये की राशि भरे। नियमानुसार छूट Auto generate हो जाएगी।आप द्वारा अधिकतम छूट के लिए कितने किराए की रसीद आवश्यक है भी Auto Generate हो जाएगी।
B10: 5. NSC INT. | C10: आप ने यदि NSC में निवेश कर रखा है तो प्र्तिवर्ष अर्जित ब्याज की गणना के लिए इस शीट का प्रयोग कर सकते है।आप ने जिस अवधि में NSC खरीदा है उसके सबंधित कॉलम में जिस अवधि का ब्याज गणना करना चाहते है NSC की राशि लिखे ।समस्त ब्याज का योग N15 cell मे Auto generate हो जाएगी जिसकी प्रविष्टि Data Entry Sheet में D40 cell में करे।
B11: Disclaimer: - | C11: All care has been taken to keep the information upto date and correct and is for educational purpose only. You are encouraged to consult your Accountant or Advisor before taking any decesion based on this calculator
C13: सुधार हेतु सुझाव आमंत्रित है
C19: joshihansraj72@gmail.com
B21: UPDATED 14-11-2020
B22: UPADTES:- | C22: 1.BONUS AS PAR GOVERNMENT NEW ORDER
C23: 2.CM CORONA RELIEF FUND DEDUCTION OPTION INCLUDED AS PAR GOVERNMENT ORDER
B24: UPDATED 30-11-2020 | C24: INCOME TAX DEDUCTION IN SALARY FILL IN DATA ENTRY SHEET
C25: GPF 2004 DEDUCTION AUTO INCULDE IN 80C
B26: UPDATED 06-12-2020 | C26: IF ASSESSEE PAY SI PREMIUM UPTO NEXT TWO SLAB THAN FILL OPTION PROVIDE IN DATA ENTRY SHEET
B27: UPDATED 11-12-2020 | C27: 1.RECTIFIED EN ERROR IN SALARY SHEET(COLUMN Z RESOLVED ISSUE GPF AMOUNT WAS NOT ADDING IN SUM)
C28: 2. NEW FEATURES ADDED :- US 80 TTA, 80TTB, 80D AND 80DDB AMOUNT AUTOMATIC CALCULATED FOR INDIVIDUAL AND SENIOR CITIZEN AS PAR RULE OF IT.
B29: UPDATE 13-11-2020 | C29: RECTIFIED ERROR :- #VALUE ERROR IN SURRENDER IF CHOOSE NO OPTION HAS BEEN RESOLVED
B31: UPDATE 17-12-2020 | C31: 1 80CCD(1B) AUTOMATIC SPLIT FROM 80CCD(1) (80 CCD1 की राशि को 80CCD(1B) लाभ लेने के लिए ऑटोमैटिक विभाजित कर ASSESMENT करने की सुविधा)
C32: 2 UNLOCK AND LOCK BUTTON PROVIDE IN SALARY SHEET FOR EDIT IN SALARY SHEET IF REQUIRE
C33: 3 नियमों की स्पष्टता के अभाव में जीपीएफ़ 2004 की बोनस राशि को 80c में जोड़ने/ नहीं जोड़ने का विकल्प
C34: 4 SALARY SHEET को EDITABLE किया गया है एवं REFRESH बटन द्वारा डिफ़ाल्ट डाटा प्राप्ति सुविधा का विस्तार किया
B35: UPDATE 23-12-2020 | C35: 1 ASSESMENT SHEET CONVERT IN UNICODE FONT
C36: 2 ERROR IN COMPARISION SECTION IN ASSESMENT SHEET WHENEVER TAXABLE INCOME MORE THAN 1500000 RECTIFIED
B37: UPDATE 24-12-2020 | C37: 1 UPDATED FOR ALL INDIA SERVICES
B38: UPDATED 02-01-2021 | C38: 1 IN NEW REGIME CALCULATION INCOME FROM HOUSE PROPERTY RELATED ISSUE RESOLVED.
C39: 2 ON THE DEMAND OF USERS CM CORONA RELIEF FUND COLUMN IN SALARY SHEET HAS BEEN UNLOCKED . NOW ANYONE CAN CHANGE AMOUNT AS PAR NEED.
B41: IMPORTANT INFORMATION | C41: IF YOU FIND THAT CM CORONA FUND DEDUCTION IS NOT BEING SHOWN CORRECT , PLEASE CHECK CADER AND PAY LEVAL IN DATA ENTRY SHEET AND MAKE IT CORRECT

Sheet Data Entry
B2: INCOME TAX ASSESMENT FOR FINANCIAL YEAR 2020-21
W3: 1 | AN3: SI PREMIUM FROM SALARY
B4: GENERAL INFORMATION | W4: 2 | Y4: CADER | AN4: PAY RANGE | AP4: 2018-03-01 | AQ4: 2020-03-01
B5: NAME OF EMPLOYEE | C5: HANS RAJ JOSHI | G5: EMPLOYEE ID | J5: RJGA99999999999 | N5: PAN NO | Q5: XXXXX1234X | W5: 3 | Y5: All India Services | AB5: L-1 | AC5: 1 | AN5: UPTO 22000 | AP5: 500 | AQ5: 800
B6: Designation | C6: PRINCIPAL | G6: OFFICE | J6: GOVT. GIRLS SR.SEC.SCHOOL ANUPGARH | W6: 4 | Y6: State Service | AB6: L-2 | AC6: 2 | AN6: 22001 TO 28500 | AP6: 700 | AQ6: 1200
B7: CADER | C7: State Service | G7: PAY LEVAL | J7: L-23 | L7: आप NPS के सदस्य है तो Yes" नहीं तो "No" चुने | R7: No | W7: 5 | Y7: Subordinate | AB7: L-3 | AC7: 3 | AN7: 28501TO 46500 | AP7: 1300 | AQ7: 2200
B8: Mobile No | C8: 9461424525 | G8: DOB | H8: 1972-08-12 | J8: TAN NO | W8: 6 | Y8: Ministrial | AB8: L-4 | AC8: 4 | AN8: 46501 TO 72000 | AP8: 1800 | AQ8: 3000
B9: TAX DEDUCTOR'S DESIGNATION | C9: PRINCIPAL | G9: TAX DEDUCTOR'S OFFICE ADDRESS | L9: GOVT SENIOR SECONDARY SCHOOL 13DOL,SRI GANGANAGAR | W9: 7 | Y9: Class IV | AB9: L-5 | AC9: 5 | AN9: ABOVE 72000 | AP9: 3000 | AQ9: 5000
B10: YOUR BANK ACCOUNT NUMBER | G10: YOUR BANK BRANCH NAME | L10: ABC | W10: 8 | Y10: Yes | AB10: L-6 | AC10: 6 | AN10: MAXIMUM | AP10: 4000 | AQ10: 7000
B11: Pay and Allowances | W11: 9 | Y11: No | AB11: L-7 | AC11: 7
B12: मूल वेतन (मार्च 2020 का) ( 7वें वेतन आयोग अनुसार ) F | C12: 75700 | E12: मूल वेतन में परिवर्तन (एसीपी या अन्य कारण ,INCREAMENT के अलावा) का माह क्रमांक | K12: fn, x, ekg ds fy, ewy osru | W12: 10 | X12: CCA | AB12: L-8 | AC12: 8
B13: HRA का भुगतान उठाया है तो "Yes " अन्यथा "No" ड्रॉपडाउन से चुने | E13: Yes | G13: HRA दर | I13: 0.08 | K13: अन्य कोई भत्ता अगर आपको मिलता है तो Salary शीट में Manualy भरे | W13: 11 | X13: CITY | Y13: >23100 | Z13: <=23100 | AB13: L-9 | AC13: 9
B14: CCA का भुगतान उठाया है तो "Yes " अन्यथा "No" ड्रॉपडाउन से चुने | E14: No | G14: CCA लागू है तो CITY SELECT करें | K14: JODHPUR | S14: =Master!G7 -> 0 | W14: 12 | X14: JAIPUR(U) | Y14: 1000 | Z14: 620 | AB14: L-10 | AC14: 10
B15: SURRENDER OF PL का भुगतान उठाया है तो "Yes",अन्यथा "No" चुने व जिस माह में भुगतान लिया है का क्रमांक चुने | C15: Yes | D15: 8 | E15: बोनस मिला है तो "Yes"अन्यथा "No" चुने | H15: No | I15: fdrus ekg ds fy, cksul feyk | L15: 12 | N15: ARE YOU EMPLOYEE FROM MEDICAL DEP.,JUDICIARY DEP.POLICE CONSTABLE, CLASS IV,L-1 TO L-4 | W15: 1 | X15: JODHPUR | Y15: 620 | Z15: 320 | AB15: L-11 | AC15: 11
B16: EXEMPATIONS FROM INCOME TAX | W16: 2 | X16: BIKANER | Y16: 620 | Z16: 320 | AB16: L-12 | AC16: 12 | AF16: YES
B17: FOR HRA EXEMPTION ( मकान किराये का वास्तविक भुगतान ) | E17: HRA exemption amount | F17: Yearly | H17: =IF(F17="Yearly",Master!E27,Master!H27) -> 0 | I17: Rent receipt required for max. HRA exemption | K17: =IF(F17="Yearly",Master!E26,Master!H26) -> 174882 | N17: IF YOU ARE NOT ELIGIBLE TO GET HRA EXEMPTION FOR COMPLETE YEAR THEN CHOOSE "PARTIALLY" OTHERWISE "Yearly" | X17: AJMER | Y17: 620 | Z17: 320 | AB17: L-13 | AC17: 13 | AF17: NO
B18: धारा 10(14) के अन्तर्गत अन्य भत्ते | E18: मनोरंजन भत्ता धारा 16(iii) के अंतर्गत | H18: व्यवसाय कर धारा 16(iii) के अंतर्गत | X18: KOTA | Y18: 620 | Z18: 320 | AB18: L-14 | AC18: 14 | AE18: क्या आप CM CORONA RELIEF FUND में कटौती करवाना चाहते है ? यदि हाँ तो माह का चयन करे
B19: ARREARS | AB19: L-15 | AC19: 15
B20: यदि आपको चालू वित्त वर्ष में कोई Arrear मिला है तो Arrear 1/Arrear 2 में दर्ज करें | C20: Arrear 1 | F20: Arrear 2 | K20: यदि आपने 2019-20 मे Surrender leave का भुगतान उठाया है तो "Yes" चुने व माह जिसमे भुगतान उठाया का क्रमांक लिखे | P20: No | Q20: माह क्रमांक | S20: 8 | AB20: L-16 | AC20: 16
C21: राशि | D21: TDS | E21: NPS/GPF Deduction | F21: राशि | H21: TDS | I21: NPS/GPF Deduction | AB21: L-17 | AC21: 17
K22: यदि आपने अन्य कोई एरिअर का भुगतान उठाया है तो CHECK & EDIT शीट के अंतिम Unlocked पंक्ति में लिखे | AB22: L-18 | AC22: 18
B23: osru ds vfrfjDr dVkSfr;k¡] vk;@tek jkf'k ,oa NwV dk fooj.k | AB23: L-19 | AC23: 19
B24: बचत खाते की जमाराशि पर अर्जित ब्याज धारा (80TTA ) | E24: 5000 | G24: जीवन बीमा प्रीमियम -LIC (जो वेतन से काटा गया ) | Q24: 469 | AB24: L-20 | AC24: 20
B25: वरिष्ठ नागरिकों को बचत खाते एवं स्थायी जमा खाते से प्राप्त ब्याज धारा (80TTB) | G25: अन्य स्रोत से आय (FD पर ब्याज इत्यादि समस्त अन्य आय का योग ) | AB25: L-21 | AC25: 21
G26: अन्य जमा राशि (धारा 80 C के अंतर्गत ) | AB26: L-22 | AC26: 22
B27: गृह सम्पति से आय - किराया | E27: 264000 | G27: धारा 80 CCC के अंतर्गत-पेंशन प्लान हेतु अंशदान (एनपीएस के अलावा ) | AB27: L-23 | AC27: 23
B28: गृह कर | E28: 10000 | G28: धारा 80 CCD(1B) के अंतर्गत-NPS मे अतिरिक्त अंशदान | L28: SPLIT FROM 80CCD(1) | N28: =IFERROR(IF(N48="YES",Q48,0),0) -> 0 | P28: योग | Q28: =IF(SUM(K28+N28)>50000,50000,SUM(K28+N28)) -> 0 | AB28: L-24 | AC28: 24
B29: गृह ऋण मूल (जो वेतन से नहीं काटा गया ) | E29: 40000 | G29: धारा 80D -चिकित्सा बीमा प्रीमियम (सामान्य 25000,वरिष्ठ नागरिक 50000)
B30: गृह ऋण ब्याज (जो वेतन से नहीं काटा गया ) | E30: 30000 | G30: धारा 80DD -विकलांग आश्रितों के चिकित्सा उपचार (सामान्य 75000,80% से अधिक विकलांगता पर 125000)
B31: जीवन बीमा प्रीमियम -LIC (जो वेतन से नहीं काटा गया ) | E31: 6163 | G31: धारा 80DDB -विशिष्ट रोगों के उपचार हेतु (अधिकतम 40000,वरिष्ठ नागरिक 100000)
B32: पी.एल.आई . (PLI ) | G32: धारा 80E - उच्च शिक्षा हेतु ऋण का ब्याज
B33: ट्यूशन फीस (Tution Fees) | E33: 60000 | G33: धारा 80G -धर्मार्थ संस्थाओं को दिये दान | J33: श्रेणी 100% | M33: श्रेणी - 50% | P33: योग | Q33: =ROUND(N33*50%,0)+K33 -> 0
B34: ULIP/वार्षिक प्लान | G34: धारा 80 U -स्थायी शारीरिक विकलांगता (साधारण 75000, 80% से अधिक के मामले में 125000)
B35: राष्ट्रीय बचत पत्र (NSC) | G35: धारा 80 GGA -अनुमोदित वैज्ञानिक ,सामाजिक ग्रामीण विकास हेतु दिया गया दान
B36: राष्ट्रीय बचत पत्र (NSC) से प्राप्त ब्याज | G36: इक्विटी लिंक सविंग स्कीम में निवेश
B37: लोक भविष्य निधि (PPF) में निवेश | E37: 1000 | G37: स्थगित वार्षिकी
B38: राष्ट्रीय बचत स्कीम (NSS) में निवेश | G38: धारा 89 के तहत राहत
B39: सुकन्या समृद्धि योजना में जमा | G39: वेतन बिल के अलावा जमा कराया गया TDS
B41: वेतन से माहवार आयकर कटौती विवरण
B42: MONTH NAME | C42: MARCH | D42: APRIL | E42: MAY | F42: JUNE | H42: JULY | I42: AUGUST | J42: SEPT | K42: OCT | L42: NOV | M42: DEC | N42: JAN | O42: FEB
B43: TDS | D43: 3000 | E43: 3000 | F43: 3000 | H43: 3000 | I43: 3000 | J43: 12000 | K43: 12000 | L43: 12000 | M43: 12000 | N43: 12000 | O43: 12000
B45: वेतन से माहवार राज्य बीमा कटौती आगे में की दो स्लैब तक अंशदान का विवरण
C48: यदि आप राज्य बीमा की अंशदान दो स्लैब आगे तक करते है तो "YES" का चयन करे और प्रीमियम भरे अन्यथा "NO" चुने प्रीमियम को खाली छोड़े | F48: YES | H48: अंशदान | K48: यदि आप NPS की अंशदान 80CCD(1) को SPLIT कर 80CCD 1(B) का लाभ लेना चाहते है तो "YES" का चयन करे अन्यथा "NO" | N48: YES | O48: 80CCD(1B) SPLIT FROM 80CCD1 | Q48: =IF(N48="YES",Master!T31,0) -> 0
H49: 7000 | O49: संशोधित 80CCD(1) | Q49: =IF(N48="YES",Master!T30,0) -> 0

Sheet Salary
O1: आप अपनी आवश्यकता अनुसार सैलरी शीट की UNLOCKED CELL मे बदलाव कर सकते है तथा REFRESH SALARY बटन पर क्लिक कर पुनः प्रारम्भिक स्थिति मे आ सकते है। | AM1: cader
AM2: State Service | AP2: ALLOWANCES
B3: =Master!AI3 -> OFFICE OF THE PRINCIPAL GOVT SENIOR SECONDARY SCHOOL 13DOL,SRI GANGANAGAR | AM3: Subordinate | AP3: CCA
B4: =Master!AI4 -> SALARY STATEMENT FOR FINANCIAL YEAR 2020-21 | AM4: Ministrial | AP4: WASHING ALLOWANCE
B5: Name of the Employee | F5: =IF('Data Entry'!C5="","",'Data Entry'!C5) -> HANS RAJ JOSHI | L5: Designation | O5: =IF('Data Entry'!$C$6="","",'Data Entry'!$C$6) -> PRINCIPAL | S5: PAN | U5: =IF('Data Entry'!Q5="","",'Data Entry'!Q5) -> XXXXX1234X | Y5: Date of Birth | AA5: =IF('Data Entry'!H8="","",'Data Entry'!H8) -> 1972-08-12 | AM5: Class IV | AP5: HANDICAPTED ALLWANCE
B6: Employee ID | E6: =IF('Data Entry'!J5="","",'Data Entry'!J5) -> RJGA99999999999 | H6: Cader | I6: =IF('Data Entry'!C7="","",'Data Entry'!C7) -> State Service | L6: Employee Type | N6: =IF('Data Entry'!R7="","",IF('Data Entry'!R7="Yes","NPS","OPS")) -> OPS | Y6: Pay leval | Z6: =IF('Data Entry'!J7="","",'Data Entry'!J7) -> L-23 | AA6: Pay March | AB6: =Master!$AH$10 -> 75700 | AP6: ANY OTHER
B7: PAY & ALLOWANCES | M7: DEDUCTIONS
B8: SN | C8: MONTH | D8: BASIC | E8: DA | F8: HRA | G8: CCA | H8: Bonus | I8: ANY OTHER | J8: ANY OTHER | K8: ARREAR | L8: Gross Salary | M8: =IF('Data Entry'!R7="YES","NPS","GPF") -> GPF | N8: GPF 2004 | O8: SIP | P8: SI LOAN | Q8: GPF LOAN | R8: HBA | S8: HBA INT | T8: LIC | U8: RPMF | V8: GIS | W8: CM CORONA RELIEF | X8: INCOME TAX | Y8: ANY OTHER | Z8: Total Deduction | AA8: Net paid Amount | AB8: BILL NO | AC8: TV NO
B9: 1 | C9: 2 | D9: 3 | E9: 4 | F9: 5 | G9: 6 | H9: 7 | I9: 8 | J9: 9 | K9: 10 | L9: 11 | M9: 12 | N9: 13 | O9: 14 | P9: 15 | Q9: 16 | R9: 17 | S9: 18 | T9: =Master!BA9 -> 0 | U9: 20 | V9: 21 | W9: 22 | X9: 23 | Y9: 24 | Z9: 25 | AA9: 26 | AB9: 27 | AC9: 28
B10: 1 | C10: =Master!AJ10 -> 2020-03-01 | D10: =Master!AK10 -> 36629 | E10: =Master!D7 -> 6227 | F10: =Master!E7 -> 2930 | G10: =Master!$H$5 -> 0 | L10: =ROUND((D10+E10+F10+G10+H10+I10+J10+K10),0) -> 45786 | M10: =Master!S7 -> 0 | O10: =Master!T7 -> 0 | T10: ='Data Entry'!Q24 -> 469 | U10: =Master!P7 -> 800 | W10: =Master!W21 -> 12210 | X10: ='Data Entry'!C43 -> 0 | Z10: =M10+N10+O10+P10+Q10+R10+S10+T10+U10+V10+W10+X10+Y10 -> 13479 | AA10: =L10-Z10 -> 32307 | AI10: SI PREMIUM FROM SALARY
B11: 2 | C11: 2020-04-01 | D11: =Master!AH11 -> 75700 | E11: =Master!D8 -> 12869 | F11: =Master!E8 -> 6056 | G11: =Master!G8 -> 0 | L11: =ROUND((D11+E11+F11+G11+H11+I11+J11+K11),0) -> 94625 | M11: =Master!S8 -> 4800 | O11: =Master!T8 -> 7000 | T11: =T10 -> 469 | U11: =Master!P8 -> 800 | V11: 220 | X11: ='Data Entry'!D43 -> 3000 | Y11: =Y10 -> 0 | Z11: 16289 | AA11: =L11-Z11 -> 78336 | AI11: PAY RANGE | AK11: 2018-03-01 | AL11: 2020-03-01 | XFD11: =Master!AG11 -> 2020-04-01
B12: 3 | C12: 2020-05-01 | D12: =Master!AH12 -> 75700 | E12: =Master!D9 -> 12869 | F12: =Master!E9 -> 6056 | G12: =Master!G9 -> 0 | L12: 94625 | M12: =Master!S9 -> 4800 | O12: =Master!T9 -> 14000 | T12: 469 | U12: =Master!P9 -> 950 | X12: ='Data Entry'!E43 -> 3000 | Y12: 0 | Z12: 23219 | AA12: 71406 | AI12: UPTO 22000 | AK12: 500 | AL12: 800
B13: 4 | C13: 2020-06-01 | D13: =Master!AH13 -> 75700 | E13: =Master!D10 -> 12869 | F13: =Master!E10 -> 6056 | G13: =Master!G10 -> 0 | L13: 94625 | M13: =Master!S10 -> 4800 | O13: =Master!T10 -> 7000 | T13: 469 | U13: =Master!P10 -> 875 | X13: ='Data Entry'!F43 -> 3000 | Y13: 0 | Z13: 16144 | AA13: 78481 | AI13: 22001 TO 28500 | AK13: 700 | AL13: 1200
B14: 5 | C14: 2020-07-01 | D14: =Master!AH14 -> 78000 | E14: =Master!D11 -> 13260 | F14: =Master!E11 -> 6240 | G14: =Master!G11 -> 0 | L14: 97500 | M14: =Master!S11 -> 4800 | O14: =Master!T11 -> 7000 | T14: 469 | U14: =Master!P11 -> 875 | X14: ='Data Entry'!H43 -> 3000 | Y14: 0 | Z14: 16144 | AA14: 81356 | AI14: 28501TO 46500 | AK14: 1300 | AL14: 2200
B15: 6 | C15: 2020-08-01 | D15: =Master!AH15 -> 78000 | E15: =Master!D12 -> 13260 | F15: =Master!E12 -> 6240 | G15: =Master!G12 -> 0 | L15: 97500 | M15: =Master!S12 -> 4800 | O15: =Master!T12 -> 7000 | T15: 469 | U15: =Master!P12 -> 875 | X15: ='Data Entry'!I43 -> 3000 | Y15: 0 | Z15: 16144 | AA15: 81356 | AI15: 46501 TO 72000 | AK15: 1800 | AL15: 3000
B16: 7 | C16: 2020-09-01 | D16: =Master!AH16 -> 78000 | E16: =Master!D13 -> 13260 | F16: =Master!E13 -> 6240 | G16: =Master!G13 -> 0 | L16: 97500 | M16: =Master!S13 -> 4800 | O16: =Master!T13 -> 7000 | T16: 469 | U16: =Master!P13 -> 875 | W16: =Master!W22 -> 6500 | X16: ='Data Entry'!J43 -> 12000 | Y16: 0 | Z16: 31644 | AA16: 65856 | AI16: ABOVE 72000 | AK16: 3000 | AL16: 5000
B17: 8 | C17: 2020-10-01 | D17: =Master!AH17 -> 78000 | E17: =Master!D14 -> 13260 | F17: =Master!E14 -> 6240 | G17: =Master!G14 -> 0 | L17: 97500 | M17: =Master!S14 -> 4800 | O17: =Master!T14 -> 7000 | T17: 469 | U17: =Master!P14 -> 875 | W17: =Master!W23 -> 6290 | X17: ='Data Entry'!K43 -> 12000 | Y17: 0 | Z17: 31434 | AA17: 66066 | AI17: MAXIMUM | AK17: 4000 | AL17: 7000
B18: 9 | C18: 2020-11-01 | D18: =Master!AH18 -> 78000 | E18: =Master!D15 -> 13260 | F18: =Master!E15 -> 6240 | G18: =Master!G15 -> 0 | L18: 97500 | M18: =Master!S15 -> 4800 | O18: =Master!T15 -> 7000 | T18: 469 | U18: =Master!P15 -> 875 | W18: =Master!W24 -> 6500 | X18: ='Data Entry'!L43 -> 12000 | Y18: 0 | Z18: 31644 | AA18: 65856 | AI18: NO DEDUCTION | AK18: 0 | AL18: 0
B19: 10 | C19: 2020-12-01 | D19: =Master!AH19 -> 78000 | E19: =Master!D16 -> 13260 | F19: =Master!E16 -> 6240 | G19: =Master!G16 -> 0 | L19: 97500 | M19: =Master!S16 -> 4800 | O19: =Master!T16 -> 7000 | T19: 469 | U19: =Master!P16 -> 875 | W19: =Master!W25 -> 6290 | X19: ='Data Entry'!M43 -> 12000 | Y19: 0 | Z19: 31434 | AA19: 66066
B20: 11 | C20: 2021-01-01 | D20: =Master!AH20 -> 78000 | E20: =Master!D17 -> 13260 | F20: =Master!E17 -> 6240 | G20: =Master!G17 -> 0 | L20: 97500 | M20: =Master!S17 -> 4800 | O20: =Master!T17 -> 7000 | T20: 469 | U20: =Master!P17 -> 875 | W20: =Master!W26 -> 6290 | X20: ='Data Entry'!N43 -> 12000 | Y20: 0 | Z20: 31434 | AA20: 66066
B21: 12 | C21: 2021-02-01 | D21: =Master!AH21 -> 78000 | E21: =Master!D18 -> 13260 | F21: =Master!E18 -> 6240 | G21: =Master!G18 -> 0 | L21: 97500 | M21: =Master!S18 -> 4800 | O21: =Master!T18 -> 7000 | T21: =T20 -> 469 | U21: =Master!P18 -> 875 | W21: =Master!W27 -> 6964 | X21: ='Data Entry'!O43 -> 12000 | Y21: 0 | Z21: 32108 | AA21: 65392
B22: 13 | C22: SURRENDER | D22: =Master!M6 -> 39000 | E22: =Master!N6 -> 6630 | L22: 45630 | Z22: 0 | AA22: 45630
B23: 14 | C23: D.A.7/19 -12/19 | E23: =Master!K36 -> 22710 | L23: 22710 | M23: =Master!L36 -> 22710 | Z23: 22710 | AA23: 0
B24: 15 | C24: D.A.1/20 -2/20 | E24: =Master!K39 -> 7570 | L24: 7570 | M24: =Master!L39 -> 7570 | Z24: 7570 | AA24: 0
B25: 16 | C25: BONUS | H25: =Master!L3 -> 0 | L25: 0 | M25: =IF(N6="OPS",Master!M3,0) -> 0 | N25: =IF(N6="NPS",Master!M3,0) -> 0 | Z25: 0 | AA25: 0
B26: 17 | C26: ARREAR 1 | K26: =Master!J21 -> 0 | L26: 0 | M26: ='Data Entry'!E22 -> 0 | X26: ='Data Entry'!D22 -> 0 | Z26: 0 | AA26: 0
B27: 18 | C27: ARREAR 2 | K27: =Master!M21 -> 0 | L27: 0 | M27: ='Data Entry'!I22 -> 0 | X27: ='Data Entry'!H22 -> 0 | Z27: 0 | AA27: 0
B28: 19 | C28: ANY OTHER | L28: 0 | Z28: 0 | AA28: 0
B29: TOTAL | D29: =SUM(D10:D28) -> 926729 | E29: =SUM(E10:E28) -> 187824 | F29: =SUM(F10:F28) -> 71018 | G29: =SUM(G10:G28) -> 0 | H29: =SUM(H10:H28) -> 0 | I29: =I10+I11+I12+I13+I14+I15+I16+I17+I18+I19+I20+I21+I22+I23+I24+I25+I26+I27+I28 -> 0 | J29: 0 | K29: 0 | L29: 1185571 | M29: 83080 | N29: 0 | O29: 84000 | P29: 0 | Q29: 0 | R29: 0 | S29: 0 | T29: 5628 | U29: 10425 | V29: 220 | W29: 51044 | X29: 87000 | Y29: 0 | Z29: 321397 | AA29: 864174
W31: ='Data Entry'!C9 -> PRINCIPAL
E32: हस्ताक्षर कार्मिक | W32: ='Data Entry'!L9 -> GOVT SENIOR SECONDARY SCHOOL 13DOL,SRI GANGANAGAR

Sheet Assesment
B2: =Salary!B3 -> OFFICE OF THE PRINCIPAL GOVT SENIOR SECONDARY SCHOOL 13DOL,SRI GANGANAGAR | Q2: =IF($W$2=1,"OLD REGIME","NEW REGIME") -> NEW REGIME | W2: 2
B3: आयकर गणना प्रपत्र वर्ष 2020-21 (कर निर्धारण वर्ष 2021-22) | P3: =P51 -> 2
B4: 1 | C4: नाम कार्मिक | E4: ='Data Entry'!C5 -> HANS RAJ JOSHI | K4: पद | L4: ='Data Entry'!C6 -> PRINCIPAL | O4: PAN : | P4: ='Data Entry'!Q5 -> XXXXX1234X
B5: 2 | C5: आय : वर्ष 2020-21 में प्राप्त कुल वेतन (कर योग्य सुविधाओं के मूल्य सहित ) | P5: रु. | Q5: =IF('Data Entry'!$R$7="NO",Salary!$L$29,SUM(Salary!$L$29,Salary!$M$29)) -> 1185571 | T5: COMPARISION
B6: 3 | C6: गृह किराया, धारा 10(13-।) के अन्तर्गत एवं धारा 10(14)के अन्तगर्त अन्य भते जो कर मुक्त्त है | P6: रु. | Q6: =IF($P$3="1",-SUM('Data Entry'!$H$17,'Data Entry'!$C$18),0) -> 0
B7: 4 | C7: शेष (2-3) | P7: रु. | Q7: =$Q$5+$Q$6 -> 1185571 | T7: OLD REGIME | V7: NEW REGIME
B8: 5 | C8: (i)मनोरंजन भता धारा 16 (ii) के अन्तगर्त ( अधिकतम सीमा रू 5000 ) | M8: =IF($P$3="1",'Data Entry'!F18,0) -> 0
C9: (ii) व्यवयाय कर धारा 16 (iii) के अन्तगर्त | M9: =IF($P$3="1",'Data Entry'!I18,0) -> 0 | T9: TAX | U9: =Master!R97 -> 136299 | V9: =Master!S97 -> 153843
C10: (iii) स्टेण्डर्ड डिडेक्शन(Standard Deduction) 50,000 (अधिकतम) | M10: =IF($P$3="1",MIN($Q$7,50000),0) -> 0 | P10: रु. | Q10: =-SUM(M8:O10) -> 0 | T10: CESS 4% | U10: =ROUND(U9*4%,0) -> 5452 | V10: =ROUND(V9*4%,0) -> 6154
B11: 6 | C11: शेष (4-5) | P11: रु. | Q11: =Q7+Q10 -> 1185571 | T11: TOTAL | U11: =SUM(U9:U10) -> 141751 | V11: =SUM(V9:V10) -> 159997
B12: 7 | C12: (अ)गृह सम्पति से आय : (1) स्वंय के उपयोग में -शून्य | K12: (2) प्राप्त किराया रु. | M12: ='Data Entry'!E27 -> 264000
C13: (ब) घटायें | E13: किराये का 30% | H13: गृह ऋण पर ब्याज | K13: गृहकर | M13: योग 7(ब) | T13: DIFFERENCE | U13: =U11-V11 -> -18246
E14: =IF(OR($P$3="1",$P$3="2"),ROUND((M12-K14)*0.3,0),0) -> 76200 | H14: =IF($P$3="1",IF((Salary!$S$29+'Data Entry'!E30)>200000,200000,(Salary!$S$29+'Data Entry'!E30)),0) -> 0 | K14: =IF(OR($P$3="1",$P$3="2"),'Data Entry'!E28,0) -> 10000 | M14: =E14+H14+K14 -> 86200
C15: शेष -/+ (7(अ) एवं योग 7(ब) का) | P15: रु. | Q15: =M12-M14 -> 177800 | T15: =IF(U11<V11,"OLD REGIME IS BEST OPTION FOR YOU","NEW REGIME IS BEST FOR YOU") -> OLD REGIME IS BEST OPTION FOR YOU
C16: कुल शेष -/+ (6एवं 7) | P16: रु. | Q16: =Q11+Q15 -> 1363371
B17: 8 | C17: बचत खाते पर ब्याज | P17: रु. | Q17: ='Data Entry'!E24+'Data Entry'!E25 -> 5000
B18: 9 | C18: अन्य आय | P18: रु. | Q18: ='Data Entry'!Q25 -> 0 | V18: 1
B19: 10 | C19: सकल आय योग (8+9) | P19: रु. | Q19: =Q16+Q17 -> 1368371
B20: 11 | C20: घटाइये कटौतियाँ:- धारा US 80C, 80CCC,80CCD (1)
C21: (A) अधिकतम सीमा 1,50,000/- (धारा 80CCE ] (धारा 80CCD (2)) के अलावा
C22: (i) | D22: राज्य बीमा (SI) | H22: रु. | I22: =IF($P$3="1",Salary!$O$29,0) -> 0 | J22: (x) | K22: सरकारी पेंशन योजना में अंशदान ECPF अधिकतम वेतन का 10% {धारा 80CCD(1) } | N22: रु. | O22: =IF('Data Entry'!$R$7="NO",0,IF($P$3="2",0,IF('Data Entry'!N48="YES",'Data Entry'!Q49,Salary!$M$29))) -> 0
C23: (ii) | D23: जीवन बीमा प्रीमियम(LIC) | H23: रु. | I23: =IF($P$3="1",Salary!$T$29+'Data Entry'!E31,0) -> 0 | J23: (xi) | K23: पेंशन प्लान हेतु अंशदान (धारा 80CCC) | N23: रु. | O23: =IF($P$3="1",'Data Entry'!Q27,0) -> 0
C24: (iii) | D24: राष्ट्रीय बचत पत्र (NSC) | H24: रु. | I24: =IF($P$3="1",'Data Entry'!E35,0) -> 0 | J24: (xii) | K24: राष्ट्रीय बचत पत्र पर अदत ब्याज | N24: रु. | O24: =IF($P$3="1",'Data Entry'!E36,0) -> 0
C25: (iv) | D25: लोक भविष्य निधि (PPF) | H25: रु. | I25: =IF($P$3="1",'Data Entry'!E37,0) -> 0 | J25: (xiii) | K25: टयूशन फीस | N25: रु. | O25: =IF($P$3="1",'Data Entry'!E33,0) -> 0
C26: (v) | D26: राष्ट्रीय बचत स्कीम (NSS) | H26: रु. | I26: =IF($P$3="1",'Data Entry'!E38,0) -> 0 | J26: (xiv) | K26: इक्विटी लिंक सेविंग स्कीम | N26: रु. | O26: =IF($P$3="1",'Data Entry'!Q36,0) -> 0 | U26: GPF 2004 में जमा बोनस को 80C में लाभ लेने हेतु जोड़ना है तो YES अन्यथा NO का चयन करें
C27: (vi) | D27: =IF('Data Entry'!R7="NO","सामान्य प्रावधायी निधि (GPF)","जीपीएफ 2004") -> सामान्य प्रावधायी निधि (GPF) | H27: रु. | I27: =IF(AND($P$3="1",'Data Entry'!R7="NO"),Salary!$M$29,IF(AND(Assesment!$P$3="1",'Data Entry'!R7="YES",U29="YES"),Salary!N29,0)) -> 0 | J27: (xv) | K27: स्थगित वार्षिकी (Defferred Annuty) | N27: रु. | O27: =IF($P$3="1",'Data Entry'!Q37,0) -> 0
C28: (vii) | D28: सामूहिक बीमा प्रीमियम (G.Ins.) | H28: रु. | I28: =IF($P$3="1",Salary!$V$29,0) -> 0 | J28: (xvi) | K28: पी.एल.आई. ¼PLI) | N28: रु. | O28: =IF($P$3="1",'Data Entry'!E32,0) -> 0
C29: (viii) | D29: यू. एल. आई. पी./वार्षिक प्लान | H29: रु. | I29: =IF($P$3="1",'Data Entry'!E34,0) -> 0 | J29: (xvii) | K29: अन्य जमाराशि (धारा 80 सी के अन्तर्गत) | N29: रु. | O29: =IF($P$3="1",'Data Entry'!Q26,0) -> 0 | U29: YES
C30: (ix) | D30: गृह ऋण किस्त ¼HBA Premium) | H30: रु. | I30: =IF($P$3="1",'Data Entry'!E29+Salary!$R$29,0) -> 0 | J30: (xviii) | K30: सुकन्या समृद्धि योजना में जमा राशि | N30: रु. | O30: =IF($P$3="1",'Data Entry'!E39,0) -> 0
C31: योग [(i) से (xviii)] | N31: रु. | O31: =SUM(I22:I30)+SUM(O22:O30) -> 0
C32: अधिकतम कटौती की राशि 1.50 लाख रुपए तक | P32: रु. | Q32: =IF(O31<150001,ROUND(O31,0),150000) -> 0
C33: (B) घटाइये- धारा 80CCD(2) नियोक्ता द्वारा पेंशन अंशदान की राशि (अधिकतम वेतन का 10% पृथक से छूट) | P33: रु. | Q33: =IF(AND('Data Entry'!R7="Yes"),Salary!$M$29,0) -> 0
C34: (C) घटाइये -धारा 80 CCD(1B) नवीन पेंशन योजना में अतिरिक्त अंशदान (अधिकतम रू. 50,000) | P34: रु. | Q34: =IF($P$3="1",'Data Entry'!Q28,0) -> 0
C35: योग 11(A+B+C) | P35: रु. | Q35: =SUM(Q32:Q34) -> 0
B36: 12 | C36: अन्य कटौतियाँ
C37: 1 | D37: धारा 80 D ,चिकित्सा बीमा प्रीमियम (स्वयं,पति/पत्नी व बच्चों के लिए रू 25000, माता-पिता के लिए रू 25000,सीनियर सिटीजन रू 50000) | P37: रु. | Q37: =IF($P$3="1",Master!R74,0) -> 0
C38: 2 | D38: धारा 80DD विकलांग आश्रितों के चिकित्सा उपचार (अधिकतम 75,000 तथा 80%या अधिक विकलांगता 125,000) | P38: रु. | Q38: =IF($P$3="1",'Data Entry'!Q30,0) -> 0
C39: 3 | D39: धारा 80DDB विशिष्ट रोंगों के उपचार हेतु कटौती (अधिकतम रू 40,000, सीनियर सिटीजन हेतु रू 100,000) | E39: /kkjk 80DDB fof'k"V jksaxksa ds mipkj gsrq dVkSrh ¼vf/kdre : 40]000] lhfu;j flVhtu gsrq : 100]000½ | F39: /kkjk 80DDB fof'k"V jksaxksa ds mipkj gsrq dVkSrh ¼vf/kdre : 40]000] lhfu;j flVhtu gsrq : 100]000½ | G39: /kkjk 80DDB fof'k"V jksaxksa ds mipkj gsrq dVkSrh ¼vf/kdre : 40]000] lhfu;j flVhtu gsrq : 100]000½ | H39: /kkjk 80DDB fof'k"V jksaxksa ds mipkj gsrq dVkSrh ¼vf/kdre : 40]000] lhfu;j flVhtu gsrq : 100]000½ | I39: /kkjk 80DDB fof'k"V jksaxksa ds mipkj gsrq dVkSrh ¼vf/kdre : 40]000] lhfu;j flVhtu gsrq : 100]000½ | J39: /kkjk 80DDB fof'k"V jksaxksa ds mipkj gsrq dVkSrh ¼vf/kdre : 40]000] lhfu;j flVhtu gsrq : 100]000½ | K39: /kkjk 80DDB fof'k"V jksaxksa ds mipkj gsrq dVkSrh ¼vf/kdre : 40]000] lhfu;j flVhtu gsrq : 100]000½ | L39: /kkjk 80DDB fof'k"V jksaxksa ds mipkj gsrq dVkSrh ¼vf/kdre : 40]000] lhfu;j flVhtu gsrq : 100]000½ | M39: /kkjk 80DDB fof'k"V jksaxksa ds mipkj gsrq dVkSrh ¼vf/kdre : 40]000] lhfu;j flVhtu gsrq : 100]000½ | N39: /kkjk 80DDB fof'k"V jksaxksa ds mipkj gsrq dVkSrh ¼vf/kdre : 40]000] lhfu;j flVhtu gsrq : 100]000½ | O39: /kkjk 80DDB fof'k"V jksaxksa ds mipkj gsrq dVkSrh ¼vf/kdre : 40]000] lhfu;j flVhtu gsrq : 100]000½ | P39: रु. | Q39: =IF($P$3="1",Master!R76,0) -> 0
C40: 4 | D40: धारा 80E उच्च शिक्षा हेतु लिए ऋण का ब्याज | E40: /kkjk 80E mPp f'k{kk gsrq fy, _.k dk C;kt | F40: /kkjk 80E mPp f'k{kk gsrq fy, _.k dk C;kt | G40: /kkjk 80E mPp f'k{kk gsrq fy, _.k dk C;kt | H40: /kkjk 80E mPp f'k{kk gsrq fy, _.k dk C;kt | I40: /kkjk 80E mPp f'k{kk gsrq fy, _.k dk C;kt | J40: /kkjk 80E mPp f'k{kk gsrq fy, _.k dk C;kt | K40: /kkjk 80E mPp f'k{kk gsrq fy, _.k dk C;kt | L40: /kkjk 80E mPp f'k{kk gsrq fy, _.k dk C;kt | M40: /kkjk 80E mPp f'k{kk gsrq fy, _.k dk C;kt | N40: /kkjk 80E mPp f'k{kk gsrq fy, _.k dk C;kt | O40: /kkjk 80E mPp f'k{kk gsrq fy, _.k dk C;kt | P40: रु. | Q40: =IF($P$3="1",'Data Entry'!Q32,0) -> 0
C41: 5 | D41: धारा 80G धर्मार्थ संस्थाओं आदि को दिये दान ( क श्रेणी में 100 प्रतिशत एवं ख श्रेणी में 50 प्रतिशत) | E41: /kkjk 80G /kekZFkZ laLFkkvksa vkfn dks fn;s nku ¼ d Js.kh esa 100 izfr'kr ,oa [k Js.kh esa 50 izfr'kr½ | F41: /kkjk 80G /kekZFkZ laLFkkvksa vkfn dks fn;s nku ¼ d Js.kh esa 100 izfr'kr ,oa [k Js.kh esa 50 izfr'kr½ | G41: /kkjk 80G /kekZFkZ laLFkkvksa vkfn dks fn;s nku ¼ d Js.kh esa 100 izfr'kr ,oa [k Js.kh esa 50 izfr'kr½ | H41: /kkjk 80G /kekZFkZ laLFkkvksa vkfn dks fn;s nku ¼ d Js.kh esa 100 izfr'kr ,oa [k Js.kh esa 50 izfr'kr½ | I41: /kkjk 80G /kekZFkZ laLFkkvksa vkfn dks fn;s nku ¼ d Js.kh esa 100 izfr'kr ,oa [k Js.kh esa 50 izfr'kr½ | J41: /kkjk 80G /kekZFkZ laLFkkvksa vkfn dks fn;s nku ¼ d Js.kh esa 100 izfr'kr ,oa [k Js.kh esa 50 izfr'kr½ | K41: /kkjk 80G /kekZFkZ laLFkkvksa vkfn dks fn;s nku ¼ d Js.kh esa 100 izfr'kr ,oa [k Js.kh esa 50 izfr'kr½ | L41: /kkjk 80G /kekZFkZ laLFkkvksa vkfn dks fn;s nku ¼ d Js.kh esa 100 izfr'kr ,oa [k Js.kh esa 50 izfr'kr½ | M41: /kkjk 80G /kekZFkZ laLFkkvksa vkfn dks fn;s nku ¼ d Js.kh esa 100 izfr'kr ,oa [k Js.kh esa 50 izfr'kr½ | N41: /kkjk 80G /kekZFkZ laLFkkvksa vkfn dks fn;s nku ¼ d Js.kh esa 100 izfr'kr ,oa [k Js.kh esa 50 izfr'kr½ | O41: /kkjk 80G /kekZFkZ laLFkkvksa vkfn dks fn;s nku ¼ d Js.kh esa 100 izfr'kr ,oa [k Js.kh esa 50 izfr'kr½ | P41: रु. | Q41: =IF($P$3="1",'Data Entry'!Q33+Salary!$W$29,0) -> 0
C42: 6 | D42: धारा 80U स्थाई रूप से शारीरिक असमर्थतता की दशा में (अधिकतम 75,000 तथा अधिनियम 1995के अनुसार 125,000) | E42: /kkjk 80U LFkkbZ :i ls 'kkjhfjd vleFkZrrk dh n'kk esa ¼vf/kdre 75]000 rFkk vf/kfu;e 1995ds vuqlkj 125]000½ | F42: /kkjk 80U LFkkbZ :i ls 'kkjhfjd vleFkZrrk dh n'kk esa ¼vf/kdre 75]000 rFkk vf/kfu;e 1995ds vuqlkj 125]000½ | G42: /kkjk 80U LFkkbZ :i ls 'kkjhfjd vleFkZrrk dh n'kk esa ¼vf/kdre 75]000 rFkk vf/kfu;e 1995ds vuqlkj 125]000½ | H42: /kkjk 80U LFkkbZ :i ls 'kkjhfjd vleFkZrrk dh n'kk esa ¼vf/kdre 75]000 rFkk vf/kfu;e 1995ds vuqlkj 125]000½ | I42: /kkjk 80U LFkkbZ :i ls 'kkjhfjd vleFkZrrk dh n'kk esa ¼vf/kdre 75]000 rFkk vf/kfu;e 1995ds vuqlkj 125]000½ | J42: /kkjk 80U LFkkbZ :i ls 'kkjhfjd vleFkZrrk dh n'kk esa ¼vf/kdre 75]000 rFkk vf/kfu;e 1995ds vuqlkj 125]000½ | K42: /kkjk 80U LFkkbZ :i ls 'kkjhfjd vleFkZrrk dh n'kk esa ¼vf/kdre 75]000 rFkk vf/kfu;e 1995ds vuqlkj 125]000½ | L42: /kkjk 80U LFkkbZ :i ls 'kkjhfjd vleFkZrrk dh n'kk esa ¼vf/kdre 75]000 rFkk vf/kfu;e 1995ds vuqlkj 125]000½ | M42: /kkjk 80U LFkkbZ :i ls 'kkjhfjd vleFkZrrk dh n'kk esa ¼vf/kdre 75]000 rFkk vf/kfu;e 1995ds vuqlkj 125]000½ | N42: /kkjk 80U LFkkbZ :i ls 'kkjhfjd vleFkZrrk dh n'kk esa ¼vf/kdre 75]000 rFkk vf/kfu;e 1995ds vuqlkj 125]000½ | O42: /kkjk 80U LFkkbZ :i ls 'kkjhfjd vleFkZrrk dh n'kk esa ¼vf/kdre 75]000 rFkk vf/kfu;e 1995ds vuqlkj 125]000½ | P42: रु. | Q42: =IF($P$3="1",'Data Entry'!Q34,0) -> 0
C43: 7 | D43: धारा 80 TTA बचत खाते पर अधिकतम ब्याज रू. 10,000 | E43: /kkjk 80 TTA cpr [kkrs ij vf/kdre C;kt :- 10]000 194(IA) | F43: /kkjk 80 TTA cpr [kkrs ij vf/kdre C;kt :- 10]000 194(IA) | G43: /kkjk 80 TTA cpr [kkrs ij vf/kdre C;kt :- 10]000 194(IA) | H43: /kkjk 80 TTA cpr [kkrs ij vf/kdre C;kt :- 10]000 194(IA) | I43: /kkjk 80 TTA cpr [kkrs ij vf/kdre C;kt :- 10]000 194(IA) | J43: /kkjk 80 TTA cpr [kkrs ij vf/kdre C;kt :- 10]000 194(IA) | K43: /kkjk 80 TTA cpr [kkrs ij vf/kdre C;kt :- 10]000 194(IA) | L43: /kkjk 80 TTA cpr [kkrs ij vf/kdre C;kt :- 10]000 194(IA) | M43: /kkjk 80 TTA cpr [kkrs ij vf/kdre C;kt :- 10]000 194(IA) | N43: /kkjk 80 TTA cpr [kkrs ij vf/kdre C;kt :- 10]000 194(IA) | O43: /kkjk 80 TTA cpr [kkrs ij vf/kdre C;kt :- 10]000 194(IA) | P43: रु. | Q43: =IF($P$3="1",Master!R80,0) -> 0
C44: 8 | D44: धारा 80 TTB वरिष्ठ नागरिकों को सभी ब्याज पर अधिकतम 50000रू. | E44: /kkjk 80 TTB ofj"B ukxfjdksa dks lHkh C;kt ij vf/kdre 50000:- /kkjk194(IA) | F44: /kkjk 80 TTB ofj"B ukxfjdksa dks lHkh C;kt ij vf/kdre 50000:- /kkjk194(IA) | G44: /kkjk 80 TTB ofj"B ukxfjdksa dks lHkh C;kt ij vf/kdre 50000:- /kkjk194(IA) | H44: /kkjk 80 TTB ofj"B ukxfjdksa dks lHkh C;kt ij vf/kdre 50000:- /kkjk194(IA) | I44: /kkjk 80 TTB ofj"B ukxfjdksa dks lHkh C;kt ij vf/kdre 50000:- /kkjk194(IA) | J44: /kkjk 80 TTB ofj"B ukxfjdksa dks lHkh C;kt ij vf/kdre 50000:- /kkjk194(IA) | K44: /kkjk 80 TTB ofj"B ukxfjdksa dks lHkh C;kt ij vf/kdre 50000:- /kkjk194(IA) | L44: /kkjk 80 TTB ofj"B ukxfjdksa dks lHkh C;kt ij vf/kdre 50000:- /kkjk194(IA) | M44: /kkjk 80 TTB ofj"B ukxfjdksa dks lHkh C;kt ij vf/kdre 50000:- /kkjk194(IA) | N44: /kkjk 80 TTB ofj"B ukxfjdksa dks lHkh C;kt ij vf/kdre 50000:- /kkjk194(IA) | O44: /kkjk 80 TTB ofj"B ukxfjdksa dks lHkh C;kt ij vf/kdre 50000:- /kkjk194(IA) | P44: रु. | Q44: =IF($P$3="1",Master!R81,0) -> 0
C45: 9 | D45: धारा 80 GGA अनुमोदित वैज्ञानिक, सामाजिक, ग्रामीण विकास आदि हेतु दिया गया दान | E45: /kkjk 80 GGA vuqeksfnr oSKkfud] lkekftd] xzkeh.k fodkl vkfn gsrq fn;k x;k nku | F45: /kkjk 80 GGA vuqeksfnr oSKkfud] lkekftd] xzkeh.k fodkl vkfn gsrq fn;k x;k nku | G45: /kkjk 80 GGA vuqeksfnr oSKkfud] lkekftd] xzkeh.k fodkl vkfn gsrq fn;k x;k nku | H45: /kkjk 80 GGA vuqeksfnr oSKkfud] lkekftd] xzkeh.k fodkl vkfn gsrq fn;k x;k nku | I45: /kkjk 80 GGA vuqeksfnr oSKkfud] lkekftd] xzkeh.k fodkl vkfn gsrq fn;k x;k nku | J45: /kkjk 80 GGA vuqeksfnr oSKkfud] lkekftd] xzkeh.k fodkl vkfn gsrq fn;k x;k nku | K45: /kkjk 80 GGA vuqeksfnr oSKkfud] lkekftd] xzkeh.k fodkl vkfn gsrq fn;k x;k nku | L45: /kkjk 80 GGA vuqeksfnr oSKkfud] lkekftd] xzkeh.k fodkl vkfn gsrq fn;k x;k nku | M45: /kkjk 80 GGA vuqeksfnr oSKkfud] lkekftd] xzkeh.k fodkl vkfn gsrq fn;k x;k nku | N45: /kkjk 80 GGA vuqeksfnr oSKkfud] lkekftd] xzkeh.k fodkl vkfn gsrq fn;k x;k nku | O45: /kkjk 80 GGA vuqeksfnr oSKkfud] lkekftd] xzkeh.k fodkl vkfn gsrq fn;k x;k nku | P45: रु. | Q45: =IF($P$3="1",'Data Entry'!Q35,0) -> 0
C46: कुल योग 12 ( 1 से 9 तक ) | P46: रु. | Q46: =SUM(Q37:Q45) -> 0
B47: 13 | C47: कुल कटौती (11+12) | P47: रु. | Q47: =Q35+Q46 -> 0
B48: 14 | C48: कर योग्य आय(10-13)) | P48: रु. | Q48: =Q19-Q47 -> 1368371
B49: 15 | C49: कुल आय की राशि को सम्पूर्ण करना ( दस के गुणक में ) धारा 288A | P49: रु. | Q49: =ROUND(Q48,-1) -> 1368370
B50: 16 | C50: आयकर की गणना उपरोक्त कॉलम 15 के आधार पर
C51: 1.OLD REGIME | M51: 2.NEW REGIME | P51: =IF($Q$51="OLD REGIME","1","2") -> 2 | Q51: =Q2 -> NEW REGIME
C52: एक व्यक्ति कर दाता | F52: वरिष्ठ नागरिक (60 से 80 वर्ष तक) | J52: 80 वर्ष या अधिक आयु | M52: 0 - 2,50,000 | O52: 0 | Q52: =IF($P$51="1","",IF($P$51="1",Master!R90,Master!S90)) -> 0
C53: 250000 तक | E53: Nil | F53: 3,00,000 तक | I53: Nil | M53: 2,50,001 - 5,00,000 | O53: 0.05 | P53: रु. | Q53: =IF($P$51="1",Master!R91,Master!S91) -> 12500
C54: 2,50,001-5,00,000 | E54: 0.05 | F54: 3,00,001-5,00,000 | I54: 0.05 | J54: 5,00,000 तक | L54: Nil | M54: 5,00,001 - 7,50,000 | O54: 0.1 | P54: रु. | Q54: =IF($P$51="1",Master!R92,Master!S92) -> 25000
C55: 5,00,001-10,00,000 | E55: 0.2 | F55: 5,00,001-10,00,000 | I55: 0.2 | J55: 5,00,001-10,00,000 | L55: 0.2 | M55: 7,50,001 - 10,00,000 | O55: 0.15 | P55: रु. | Q55: =IF($P$51="1",Master!R93,Master!S93) -> 37500
C56: 10,00,000 से अधिक | E56: 0.3 | F56: 10,00,000 से अधिक | I56: 0.3 | J56: 10,00,000 से अधिक | L56: 0.3 | M56: 10,00,001- 12,50,000 | O56: 0.2 | P56: रु. | Q56: =IF($P$51="1",Master!R94,Master!S94) -> 50000
M57: 12,50,001- 15,00,000 | O57: 0.25 | P57: रु. | Q57: =IF($P$51="1","",IF($P$51="1",Master!R95,Master!S95)) -> 28843
M58: Above 15,00,000 | O58: 0.3 | P58: रु. | Q58: =IF($P$51="1","",IF($P$51="1",Master!R96,Master!S96)) -> 0
C59: (1) योग आयकर | P59: रु. | Q59: =SUM(Q53:Q58) -> 153843
C60: (2) छूट घारा 87(।) (2.50 लाख से 5.00 लाख तक की कर योग्य आय पर आयकर की छूट अधिकतम रू. 12500 तक) | P60: रु. | Q60: =IF(Q49>500000,0,IF(Q59<12501,Q59,12500)) -> 0
C61: (3) शेष आयकर (1-2) | P61: रु. | Q61: =Q59-Q60 -> 153843
C62: (4) शिक्षा उपकर 2% एवं उच्च शिक्षा के लिए अधिभार 2% (योग 4%) | P62: रु. | Q62: =ROUND(Q61*0.04,0) -> 6154
C63: कुल आयकर (3+4) | P63: रु. | Q63: =SUM(Q61:Q62) -> 159997
B64: 17 | C64: घटाइये :- राहत धारा 89 के तहत | P64: रु. | Q64: =IF('Data Entry'!Q38="",0,'Data Entry'!Q38) -> 0
B65: 18 | C65: कुल शेष आयकर | P65: रु. | Q65: =Q63-Q64 -> 159997
B66: 19 | C66: स्रोत पर आयकर कटौती का विवरण | F66: सितम्बर 2020 तक रूपये | J66: दिसम्बर 2020 तक रूपये | L66: जनवरी 2021 | M66: फरवरी 2021 | O66: टी .डी.एस.एरियर आदि से रूपये | P66: TDS योग
F67: =SUM(Salary!X10:X16) -> 27000 | J67: =SUM(Salary!X17:X19) -> 36000 | L67: =SUM(Salary!X20) -> 12000 | M67: =SUM(Salary!X21) -> 12000 | O67: =SUM(Salary!X22:X28) -> 0 | P67: =SUM(F67,J67,L67,M67,O67) -> 87000
B68: =IF(Q65>P67,"Income Tax Payable",IF(Q65<P67,"Income Tax Refundable","Income Tax Payble/Refundable")) -> Income Tax Payable | P68: रु. | Q68: =IF(Q65>P67,Q65-P67,P67-Q65) -> 72997
C69: हस्ताक्षर कार्मिक

Sheet Master (hidden)
A1: Master Sheet
E2: EMPLOYEE TYPE | G2: =Salary!N6 -> OPS | I2: ='Data Entry'!H8 -> 1972-08-12 | L2: Bonus | M2: ='Data Entry'!H15 -> No | N2: Bonus months | O2: ='Data Entry'!L15 -> 12 | P2: EMPLOYEE FROM MEDICAL DEP.,JUDICIARY DEP.POLICE CONSTABLE OR CLASS IV(L-1 TO L-4) | R2: FALSE | AA2: rpmf
B3: ='Data Entry'!C5 -> HANS RAJ JOSHI | D3: ='Data Entry'!C6 -> PRINCIPAL | E3: ='Data Entry'!C7 -> State Service | G3: ='Data Entry'!J7 -> L-23 | H3: ='Data Entry'!J5 -> RJGA99999999999 | I3: ='Data Entry'!Q5 -> XXXXX1234X | K3: HRA exemption | L3: =IF(M2="No",0,ROUND((6774*O2/12),0)) -> 0 | M3: =ROUND(L3*75%,0) -> 0 | N3: =L3-M3 -> 0 | Y3: deduction | AA3: PAY RANGE | AC3: 2019-04-01 | AD3: 2020-04-01 | AE3: ded | AF3: DIFFERENCE | AI3: =CONCATENATE('Data Entry'!$G$6&" OF THE "&'Data Entry'!$C$9&" "&'Data Entry'!$L$9) -> OFFICE OF THE PRINCIPAL GOVT SENIOR SECONDARY SCHOOL 13DOL,SRI GANGANAGAR
B4: =AH10 -> 75700 | E4: HRA | G4: CCA | H4: MARCH CCA | I4: CPF | K4: SURRENDER | L4: surrender 2020-21 | W4: 2017-10-01 | X4: 2018-03-01 | Y4: =IF(Salary!$D$11<23001,1450,IF(Salary!$D$11<28001,1625,IF(Salary!$D$11<38501,2100,IF(Salary!$D$11<51501,2850,IF(Salary!$D$11<62001,3575,IF(Salary!$D$11<72001,4200,IF(Salary!$D$11<80001,4800))))))) -> 4800 | Z4: =IF(Salary!$D$11<116001,6150,IF(Salary!$D$11<167001,8900,10500)) -> 6150 | AA4: UP TO 18000 | AC4: 242 | AD4: 265 | AE4: =IF($G$2="OPS",IF(Salary!$AB$6<18001,265,IF(Salary!$AB$6<33501,440,IF(Salary!$AB$6<54001,658,875))),"") -> 875 | AF4: =AD4-AC4 -> 23 | AI4: SALARY STATEMENT FOR FINANCIAL YEAR 2020-21
C5: Salary | D5: DA17% | E5: ='Data Entry'!E13 -> Yes | G5: ='Data Entry'!E14 -> No | H5: =IF($R$2=TRUE,$G$7,IF($Y$18="State Service",ROUND($G$7*15/31,0),IF(AND($Y$18="Subordinate",AND(AL8<=9,AL8>=5)),ROUND($G$7/31*22,0),IF(AND($Y$18="Subordinate",$Z$18>9),ROUND($G$7/31*15,0),IF($Y$18="Ministrial",ROUND($G$7/31*22,0),$G$7))))) -> 0 | L5: month | M5: pay | N5: da | O5: total | P5: DEDUCTION | W5: 500 | X5: 1450 | AA5: 18001 TO 33500 | AC5: 402 | AD5: 440 | AF5: =AD5-AC5 -> 38
B6: Month | E6: ='Data Entry'!I13 -> 0.08 | G6: ='Data Entry'!K14 -> JODHPUR | I6: GROSS SALARY | L6: =IF('Data Entry'!C15="Yes",'Data Entry'!$D$15,"") -> 8 | M6: =IF(L6="",0,IF(ISNA(ROUND(VLOOKUP($L$6,Master!$A$7:$D$18,3,0)/2,0)),0,ROUND(VLOOKUP($L$6,Master!$A$7:$D$18,3,0)/2,0))) -> 39000 | N6: =IF(M6="","",ROUND(M6*17%,0)) -> 6630 | O6: =SUM(M6:N6) -> 45630 | P6: RPMF | Q6: GPF1 | R6: GPF2 | S6: NPS | T6: SI | U6: SI | W6: 650 | X6: 1625 | AA6: 33501 TO 54000 | AC6: 602 | AD6: 658 | AF6: 56
A7: 3 | B7: march | C7: =Salary!D10 -> 36629 | D7: =ROUND(C7*17%,0) -> 6227 | E7: =IF($E$5="Yes",ROUND(C7*$E$6,0),0) -> 2930 | G7: =IFERROR(IF($G$5="Yes",IF('Data Entry'!$K$14="",0,IF(C7>23100,VLOOKUP($G$6,$R$20:$T$24,2,0),VLOOKUP($G$6,$R$20:$T$24,3,0))),0),"") -> 0 | I7: =Salary!L10 -> 45786 | P7: =IF(AND($G$2="OPS",AH10>0),IF(AH10<=18000,242,IF(AH10<=33500,402,IF(AH10<=54000,602,800))),0) -> 800 | S7: =IF($G$2="NPS",ROUND((C7+D7)*10%,0),R7) -> 0 | T7: 0 | W7: 1100 | X7: 2100 | AA7: 54001 & ABOVE | AC7: 800 | AD7: 875 | AF7: 75
A8: 4 | B8: april | C8: =Salary!D11 -> 75700 | D8: =ROUND(C8*17%,0) -> 12869 | E8: =IF($E$5="Yes",ROUND(C8*$E$6,0),0) -> 6056 | G8: =IFERROR(IF($G$5="Yes",IF('Data Entry'!$K$14="",0,IF(C8>23100,VLOOKUP($G$6,$R$20:$T$24,2,0),VLOOKUP($G$6,$R$20:$T$24,3,0))),0),"") -> 0 | I8: =Salary!L11 -> 94625 | P8: =IF(AND($G$2="OPS",AH11>0),IF(AH11<=18000,242,IF(AH11<=33500,402,IF(AH11<=54000,602,800))),0) -> 800 | Q8: =IF(C8>80000,"6150",IF(C8>72000,"4800",IF(C8>62000,"4200",IF(C8>51500,"3575",IF(C8>38500,"2850",IF(C8>28500,"2100",IF(C8>23100,"1625",IF(C8>17700,"1450","0")))))))) -> 4800 | R8: =IF(C8>167000,"10500",IF(C8>116000,"8900",Q8)) -> 4800 | S8: =IF($G$2="NPS",ROUND((C8+D8)*10%,0),R8) -> 4800 | T8: =AE10 -> 7000 | W8: 1450 | X8: 2850 | AI8: ACP MONTH | AJ8: pay after acp
A9: 5 | B9: may | C9: =Salary!D12 -> 75700 | D9: =ROUND(C9*17%,0) -> 12869 | E9: 6056 | G9: =IFERROR(IF($G$5="Yes",IF('Data Entry'!$K$14="",0,IF(C9>23100,VLOOKUP($G$6,$R$20:$T$24,2,0),VLOOKUP($G$6,$R$20:$T$24,3,0))),0),"") -> 0 | I9: =Salary!L12 -> 94625 | P9: =IF(AND($G$2="OPS",AH10>0),IF(AH12<=18000,288,IF(AH12<=33500,478,IF(AH12<=54000,714,950))),0) -> 950 | Q9: =IF(C9>72000,"4800",IF(C9>62000,"4200",IF(C9>51500,"3575",IF(C9>38500,"2850",IF(C9>28500,"2100",IF(C9>23100,"1625",IF(C9>17700,"1450","0"))))))) -> 4800 | R9: =IF(C9>167000,"10500",IF(C9>116000,"8900",IF(C9>80000,"6150",Q9))) -> 4800 | S9: 4800 | T9: =AE10*2 -> 14000 | W9: 2100 | X9: 3575 | AA9: SI PREMIUM FROM SALARY | AG9: MONTH | AH9: BASIC | AI9: ='Data Entry'!I12 -> 0 | AJ9: =IF(OR('Data Entry'!I12="",'Data Entry'!Q12=""),"",'Data Entry'!$Q$12) ->  | AL9: L-1 | AM9: 1
A10: 6 | B10: june | C10: =Salary!D13 -> 75700 | D10: 12869 | E10: 6056 | G10: =IFERROR(IF($G$5="Yes",IF('Data Entry'!$K$14="",0,IF(C10>23100,VLOOKUP($G$6,$R$20:$T$24,2,0),VLOOKUP($G$6,$R$20:$T$24,3,0))),0),"") -> 0 | I10: =Salary!L13 -> 94625 | P10: =IF(AND($G$2="OPS",AH10>0),IF(AH13<=18000,265,IF(AH13<=33500,440,IF(AH13<=54000,658,875))),0) -> 875 | Q10: 4800 | R10: 4800 | S10: 4800 | T10: =AE10 -> 7000 | W10: 3300 | X10: 4200 | AA10: PAY RANGE | AC10: 2018-03-01 | AD10: 2020-03-01 | AE10: =IF('Data Entry'!F48="YES",'Data Entry'!H49,IF(Salary!$AB$6<22001,800,IF(Salary!$AB$6<28501,1200,IF(Salary!$AB$6<46501,2200,IF(Salary!$AB$6<72001,3000,5000))))) -> 7000 | AF10: =ROW(AF10)-7 -> 3 | AG10: 2020-03-01 | AH10: =IF($AI$9=ROW(AG10)-7,'Data Entry'!$Q$12,'Data Entry'!$C$12) -> 75700 | AI10: march basic | AJ10: 2020-03-01 | AK10: =IF($R$2=TRUE,$AH$10,IF($Y$18="State Service",ROUND($AH$10*15/31,0),IF(AND($Y$18="Subordinate",AND(Z18<=9,Z18>=5)),ROUND($AH$10/31*22,0),IF(AND($Y$18="Subordinate",$Z$18>9),ROUND($AH$10/31*15,0),IF($Y$18="Ministrial",ROUND($AH$10/31*22,0),$AH$10))))) -> 36629 | AL10: L-2 | AM10: 2
A11: 7 | B11: july | C11: =Salary!D14 -> 78000 | D11: 13260 | E11: 6240 | G11: =IFERROR(IF($G$5="Yes",IF('Data Entry'!$K$14="",0,IF(C11>23100,VLOOKUP($G$6,$R$20:$T$24,2,0),VLOOKUP($G$6,$R$20:$T$24,3,0))),0),"") -> 0 | I11: =Salary!L14 -> 97500 | P11: 875 | Q11: 4800 | R11: 4800 | S11: 4800 | T11: =T10 -> 7000 | W11: 4100 | X11: 4800 | AA11: UPTO 22000 | AC11: 500 | AD11: 800 | AF11: =ROW(AF11)-7 -> 4 | AG11: 2020-04-01 | AH11: =IF($AI$9=ROW(AG11)-7,'Data Entry'!$Q$12,AH10) -> 75700 | AL11: L-3 | AM11: 3
A12: 8 | B12: august | C12: =Salary!D15 -> 78000 | D12: 13260 | E12: 6240 | G12: =IFERROR(IF($G$5="Yes",IF('Data Entry'!$K$14="",0,IF(C12>23100,VLOOKUP($G$6,$R$20:$T$24,2,0),VLOOKUP($G$6,$R$20:$T$24,3,0))),0),"") -> 0 | I12: =Salary!L15 -> 97500 | P12: 875 | Q12: 4800 | R12: 4800 | S12: 4800 | T12: 7000 | W12: 5200 | X12: 6150 | AA12: 22001 TO 28500 | AC12: 700 | AD12: 1200 | AF12: 5 | AG12: 2020-05-01 | AH12: =IF($AI$9=ROW(AG12)-7,'Data Entry'!$Q$12,AH11) -> 75700 | AL12: L-4 | AM12: 4
A13: 9 | B13: september | C13: =Salary!D16 -> 78000 | D13: 13260 | E13: 6240 | G13: =IFERROR(IF($G$5="Yes",IF('Data Entry'!$K$14="",0,IF(C13>23100,VLOOKUP($G$6,$R$20:$T$24,2,0),VLOOKUP($G$6,$R$20:$T$24,3,0))),0),"") -> 0 | I13: =Salary!L16 -> 97500 | P13: 875 | Q13: 4800 | R13: 4800 | S13: 4800 | T13: 7000 | W13: 5700 | X13: 8900 | AA13: 28501TO 46500 | AC13: 1300 | AD13: 2200 | AF13: 6 | AG13: 2020-06-01 | AH13: =IF($AI$9=ROW(AG13)-7,'Data Entry'!$Q$12,AH12) -> 75700 | AL13: L-5 | AM13: 5
A14: 10 | B14: october | C14: =Salary!D17 -> 78000 | D14: 13260 | E14: 6240 | G14: =IFERROR(IF($G$5="Yes",IF('Data Entry'!$K$14="",0,IF(C14>23100,VLOOKUP($G$6,$R$20:$T$24,2,0),VLOOKUP($G$6,$R$20:$T$24,3,0))),0),"") -> 0 | I14: =Salary!L17 -> 97500 | P14: 875 | Q14: 4800 | R14: 4800 | S14: 4800 | T14: 7000 | W14: 6200 | X14: 10500 | AA14: 46501 TO 72000 | AC14: 1800 | AD14: 3000 | AF14: 7 | AG14: 2020-07-01 | AH14: =IF($AI$9=ROW(AG14)-7,'Data Entry'!$Q$12,MROUND(AH13*103%,100)) -> 78000 | AL14: L-6 | AM14: 6
A15: 11 | B15: november | C15: =Salary!D18 -> 78000 | D15: 13260 | E15: 6240 | G15: =IFERROR(IF($G$5="Yes",IF('Data Entry'!$K$14="",0,IF(C15>23100,VLOOKUP($G$6,$R$20:$T$24,2,0),VLOOKUP($G$6,$R$20:$T$24,3,0))),0),"") -> 0 | I15: =Salary!L18 -> 97500 | P15: 875 | Q15: 4800 | R15: 4800 | S15: 4800 | T15: 7000 | AA15: ABOVE 72000 | AC15: 3000 | AD15: 5000 | AF15: 8 | AG15: 2020-08-01 | AH15: =IF($AI$9=ROW(AG15)-7,'Data Entry'!$Q$12,AH14) -> 78000 | AL15: L-7 | AM15: 7
A16: 12 | B16: december | C16: =Salary!D19 -> 78000 | D16: 13260 | E16: 6240 | G16: =IFERROR(IF($G$5="Yes",IF('Data Entry'!$K$14="",0,IF(C16>23100,VLOOKUP($G$6,$R$20:$T$24,2,0),VLOOKUP($G$6,$R$20:$T$24,3,0))),0),"") -> 0 | I16: =Salary!L19 -> 97500 | P16: 875 | Q16: 4800 | R16: 4800 | S16: 4800 | T16: 7000 | AA16: MAXIMUM | AC16: 4000 | AD16: 7000 | AF16: 9 | AG16: 2020-09-01 | AH16: =IF($AI$9=ROW(AG16)-7,'Data Entry'!$Q$12,AH15) -> 78000 | AL16: L-8 | AM16: 8
A17: 1 | B17: january | C17: =Salary!D20 -> 78000 | D17: 13260 | E17: 6240 | G17: =IFERROR(IF($G$5="Yes",IF('Data Entry'!$K$14="",0,IF(C17>23100,VLOOKUP($G$6,$R$20:$T$24,2,0),VLOOKUP($G$6,$R$20:$T$24,3,0))),0),"") -> 0 | I17: =Salary!L20 -> 97500 | P17: 875 | Q17: 4800 | R17: 4800 | S17: 4800 | T17: 7000 | V17: CM CORONA RELIEF | X17: 1 | Y17: cader | Z17: Pay Leval | AF17: 10 | AG17: 2020-10-01 | AH17: =IF($AI$9=ROW(AG17)-7,'Data Entry'!$Q$12,AH16) -> 78000 | AL17: L-9 | AM17: 9
A18: 2 | B18: february | C18: =Salary!D21 -> 78000 | D18: 13260 | E18: 6240 | G18: =IFERROR(IF($G$5="Yes",IF('Data Entry'!$K$14="",0,IF(C18>23100,VLOOKUP($G$6,$R$20:$T$24,2,0),VLOOKUP($G$6,$R$20:$T$24,3,0))),0),"") -> 0 | I18: =Salary!L21 -> 97500 | P18: 875 | Q18: 4800 | R18: 4800 | S18: 4800 | T18: 7000 | Y18: ='Data Entry'!C7 -> State Service | Z18: =VLOOKUP('Data Entry'!$J$7,AL9:AM32,2,0) -> 23 | AF18: 11 | AG18: 2020-11-01 | AH18: =IF($AI$9=ROW(AG18)-7,'Data Entry'!$Q$12,AH17) -> 78000 | AL18: L-10 | AM18: 10
F19: WHOLE YEAR | H19: PARTIALY | J19: arrear1 | M19: arrear2 | R19: cca | S19: PAY>23100 | T19: PAY=<23100 | V19: cm corona relief | AF19: 12 | AG19: 2020-12-01 | AH19: =IF($AI$9=ROW(AG19)-7,'Data Entry'!$Q$12,AH18) -> 78000 | AL19: L-11 | AM19: 11
C20: वेतन (PAY+DA) | E20: =ROUND(SUM(Salary!D10:D21,Salary!E10:E21),0) -> 1038643 | H20: =ROUND(HRA!$D$18,0) -> 1038643 | J20: राशि | K20: TDS | L20: =IF(J2="Yes","NPS","GPS") -> GPS | M20: राशि | N20: TDS | O20: =IF(J2="Yes","NPS","GPF") -> GPF | R20: JAIPUR(U) | S20: 1000 | T20: 620 | V20: month | W20: deduction | AF20: 13 | AG20: 2021-01-01 | AH20: =IF($AI$9=ROW(AG20)-7,'Data Entry'!$Q$12,AH19) -> 78000 | AL20: L-12 | AM20: 12
A21: A | B21: HRA RECEIVED | E21: =SUM(Salary!F10:F21) -> 71018 | H21: =HRA!E18 -> 71018 | J21: ='Data Entry'!C22 -> 0 | K21: ='Data Entry'!D22 -> 0 | L21: ='Data Entry'!E22 -> 0 | M21: ='Data Entry'!F22 -> 0 | N21: ='Data Entry'!H22 -> 0 | O21: ='Data Entry'!H22 -> 0 | R21: JODHPUR | S21: 620 | T21: 320 | V21: 2020-03-01 | W21: =IF(OR($Y$18="All India Services",$Y$18="State Service"),ROUND(AH10/31*5,0),IF(AND($Y$18="Subordinate",$Z$18>9),ROUND(AH10/31*3,0),IF(AND($Y$18="Subordinate",OR(Z18>4,Z18<10)),ROUND(AH10/31*2,0),IF($Y$18="Ministrial",ROUND(AH10/31*2,0),IF(OR($Y$18="Class IV",$Z$18<5),ROUND(AH10/31*1,0)))))) -> 12210 | Z21: IF(C8>167000,"10500",IF(C8>116000,"8900",Q8 | AF21: 14 | AG21: 2021-02-01 | AH21: =IF($AI$9=ROW(AG21)-7,'Data Entry'!$Q$12,AH20) -> 78000 | AL21: L-13 | AM21: 13
B22: 10% of SALARY(PAY+DA) | E22: =ROUND(E20*10%,0) -> 103864 | H22: =ROUND(HRA!$D$18*10%,0) -> 103864 | Q22: March | R22: AJMER | S22: 620 | T22: 320 | V22: sep | W22: =IF($R$2=TRUE,0,IF(OR($Y$18="Class IV",$Z$18<5),0,IF(OR($Y$18="All India Services",$Y$18="State Service"),ROUND(Salary!L16/30*2,0),ROUND(Salary!L16/30,0)))) -> 6500 | AL22: L-14 | AM22: 14
B23: RENT PAID ANNUALY | E23: ='Data Entry'!C17 -> 0 | H23: ='Data Entry'!C17 -> 0 | Q23: April | R23: BIKANER | S23: 620 | T23: 320 | V23: oct | W23: =IF($R$2=TRUE,0,IF(OR($Y$18="Class IV",$Z$18<5),0,IF(OR($Y$18="All India Services",$Y$18="State Service"),ROUND(Salary!L17/31*2,0),ROUND(Salary!L17/31,0)))) -> 6290 | AL23: L-15 | AM23: 15
A24: B | B24: Rent paid ( Annual )-10% of Salary received ( Basic + DA ) | E24: =$E$23-$E$22 -> -103864 | H24: =H23-H22 -> -103864 | Q24: May | R24: KOTA | S24: 620 | T24: 320 | V24: nov | W24: =IF($R$2=TRUE,0,IF($X$17=2,0,IF(X24=FALSE,0,IF(OR($Y$18="Class IV",$Z$18<5),0,IF(OR($Y$18="All India Services",$Y$18="State Service"),ROUND(Salary!L18/30*2,0),ROUND(Salary!L18/30,0)))))) -> 6500 | X24: TRUE | AL24: L-16 | AM24: 16
A25: C | B25: 40% OF PAY | C25: =HRA!J5 -> NON METRO | E25: =IF($C$25="METRO",ROUND(E20*50%,0),ROUND(E20*40%,0)) -> 415457 | H25: =ROUND(HRA!$D$18*40%,0) -> 415457 | V25: dec | W25: =IF($R$2=TRUE,0,IF($X$17=2,0,IF(X25=FALSE,0,IF(OR($Y$18="Class IV",$Z$18<5),0,IF(OR($Y$18="All India Services",$Y$18="State Service"),ROUND(Salary!L19/31*2,0),ROUND(Salary!L19/31,0)))))) -> 6290 | X25: TRUE | AL25: L-17 | AM25: 17
C26: HRA rent receipt req | E26: =$E$21+$E$22 -> 174882 | H26: =H22+H21 -> 174882 | R26: 80CCD(1B) | V26: jan | W26: =IF($R$2=TRUE,0,IF($X$17=2,0,IF(X26=FALSE,0,IF(OR($Y$18="Class IV",$Z$18<5),0,IF(OR($Y$18="All India Services",$Y$18="State Service"),ROUND(Salary!L20/31*2,0),ROUND(Salary!L20/31,0)))))) -> 6290 | X26: TRUE | AL26: L-18 | AM26: 18
C27: HRA exemption | E27: =IF($E$24>0,MIN($E$21,$E$24,$E$25),0) -> 0 | H27: =IF($H$24>0,MIN($H$21,$H$24,$H$25),0) -> 0 | Q27: SUM OF 80C | T27: =H59+H60+H61+H62+H63+H64+H65+H66+H67+P60+P61+P62+P63+P64+P65+P66+P67+R70 -> 280091 | V27: feb | W27: =IF($R$2=TRUE,0,IF($X$17=2,0,IF(X27=FALSE,0,IF(OR($Y$18="Class IV",$Z$18<5),0,IF(OR($Y$18="All India Services",$Y$18="State Service"),ROUND(Salary!L21/28*2,0),ROUND(Salary!L21/28,0)))))) -> 6964 | X27: TRUE | AL27: L-19 | AM27: 19
B28: =IF('Data Entry'!R7="Yes","NPS","OPS") -> OPS | C28: DA ARREAR | H28: surrender 2019-20 arrear | J28: month | K28: =IF('Data Entry'!P20="Yes",'Data Entry'!S20,0) -> 0 | L28: total | Q28: 80CCD(1B) ADDITIONAL | T28: =IF('Data Entry'!K28>50000,50000,'Data Entry'!K28) -> 0 | AL28: L-20 | AM28: 20
C29: MONTH | D29: PAY | E29: DA5% | H29: PAY | I29: DA5% | K29: total | L29: GPF/nps | M29: CASH | Q29: 80CCD 1 | R29: =R70 -> 0 | S29: 80C EXCEED 1.5LAC | T29: =IF(G2="OPS",0,IF(T27>150000,T27-150000,0)) -> 0 | AL29: L-21 | AM29: 21 | BE29: 4
B30: 7 | C30: 2019-07-01 | D30: ='Data Entry'!C12 -> 75700 | E30: =ROUND(D30*5%,0) -> 3785 | H30: =IF($K$28=B30,ROUND(D30/2,0),0) -> 0 | I30: =ROUND(H30*5%,0) -> 0 | K30: =E30+I30 -> 3785 | L30: =IF($B$28="OPS",K30,ROUND(K30*10%,0)) -> 3785 | M30: =K30-L30 -> 0 | R30: REVISED 80CCD1 | T30: =IFERROR(SUM(R29)-'Data Entry'!Q48,0) -> 0 | AL30: L-22 | AM30: 22
B31: 8 | C31: 2019-08-01 | D31: =D30 -> 75700 | E31: 3785 | H31: =IF($K$28=B31,ROUND(D31/2,0),0) -> 0 | I31: =ROUND(H31*5%,0) -> 0 | K31: 3785 | L31: =IF($B$28="OPS",K31,ROUND(K31*10%,0)) -> 3785 | M31: 0 | R31: 80CCD(1B) SPLIT FROM 80CCD1 | T31: =IF(OR('Data Entry'!R7="NO",T27<150000),0,IF(R29>=T29,MIN((50000-T28),T29),MIN(R29,50000-T28))) -> 0 | W31: T29>50000,50000-T28,U29 | AL31: L-23 | AM31: 23
B32: 9 | C32: 2019-09-01 | D32: =D31 -> 75700 | E32: 3785 | H32: 0 | I32: 0 | K32: 3785 | L32: 3785 | M32: 0 | AL32: L-24 | AM32: 24
B33: 10 | C33: 2019-10-01 | D33: =D32 -> 75700 | E33: 3785 | H33: 0 | I33: 0 | K33: 3785 | L33: 3785 | M33: 0
B34: 11 | C34: 2019-11-01 | D34: =D33 -> 75700 | E34: 3785 | H34: 0 | I34: 0 | K34: 3785 | L34: 3785 | M34: 0
B35: 12 | C35: 2019-12-01 | D35: =D34 -> 75700 | E35: 3785 | H35: 0 | I35: 0 | K35: 3785 | L35: 3785 | M35: 0
C36: TOTAL(7/19-12/19) | E36: =SUM(E30:E35) -> 22710 | H36: =SUM(H30:H35) -> 0 | I36: 0 | K36: 22710 | L36: 22710 | M36: 0
B37: 1 | C37: 2020-01-01 | D37: =D30 -> 75700 | E37: =ROUND(D37*5%,0) -> 3785 | H37: 0 | I37: 0 | K37: =E37+I37 -> 3785 | L37: 3785 | M37: =K37-L37 -> 0
B38: 2 | C38: 2020-02-01 | D38: =D31 -> 75700 | E38: =ROUND(D38*5%,0) -> 3785 | H38: 0 | I38: 0 | K38: =E38+I38 -> 3785 | L38: 3785 | M38: =K38-L38 -> 0 | R38: OLD | S38: NEW
C39: TOTAL(1/20-2/20) | E39: =SUM(E37:E38) -> 7570 | H39: =SUM(H37:H38) -> 0 | I39: 0 | K39: 7570 | L39: 7570 | M39: 0
A40: vk;dj x.kuk izi= o"kZ 2019&2020¼dj fu/kkZj.k o"kZ 2020&2021½ | Q40: =#REF! ->  | R40: OLD REGIME | S40: NEW REGIME
A41: 1 | B41: uke deZpkjh % | J41: in % | P41: PAN : | Q41: ='Data Entry'!L41 -> 0
A42: 2 | B42: vk; % o"kZ&2019&20 esa izkIr dqy osru ¼ dj ;ksX; lqfo/kkvksa ds eqY; lfgr ½ | Q42: #- | R42: =IF('Data Entry'!$R$7="NO",Salary!L29,SUM(Salary!L29,Salary!M29)) -> 1185571 | S42: =IF('Data Entry'!$R$7="NO",Salary!L29,SUM(Salary!L29,Salary!M29)) -> 1185571
A43: 3 | B43: x`g fdjk;k] /kkjk 10¼13&A½ ds vUrxrZ ,oa /kkjk 10¼14½ds vUrxrZ vU; Hkrs tks dj eqDÙk gSA | Q43: #- | R43: =-SUM('Data Entry'!$H$17,'Data Entry'!$C$18) -> 0 | S43: 0
A44: 4 | B44: 'ks"k ¼2&3½ | Q44: #- | R44: =$R$42+$R$43 -> 1185571 | S44: =$R$42+$R$43 -> 1185571
A45: 5 | B45: ¼i½euksjatu Hkrk /kkjk 16 ¼ii½ ds vUrxrZ ¼ vf/kdre lhek : 5000 ½ | N45: ='Data Entry'!F18 -> 0 | S45: 0
B46: ¼ii½ O;o;k; dj /kkjk 16 ¼iii½ ds vUrxrZ | N46: ='Data Entry'!I18 -> 0 | S46: 0
B47: ¼iiI½ LVs.MMZ fMMsD'ku (Standard Deduction) 50]000 ¼vf/kdre½ | N47: =MIN($R$44,50000) -> 50000 | Q47: #- | R47: =-SUM(N45:P47) -> -50000 | S47: 0
A48: 6 | B48: 'ks"k ¼4&5½ | Q48: #- | R48: =R44+R47 -> 1135571 | S48: =S44-S45-S46-S47 -> 1185571
A49: 7 | B49: ¼v½x`g lEifr ls vk;%¼1½ Loa; ds mi;ksx esa &'kwU; | J49: ¼2½ izkIr fdjk;k #- | N49: ='Data Entry'!E27 -> 264000
B50: ¼c½ ?kVk;sa | D50: fdjk;s dk 30% | G50: x`g _.k ij C;kt | J50: x`gdj | N50: ;ksx 7¼c½
D51: =ROUND(N49*0.3,0) -> 79200 | G51: =IF((Salary!S29+'Data Entry'!E30)>200000,200000,(Salary!S29+'Data Entry'!E30)) -> 30000 | J51: ='Data Entry'!E28 -> 10000 | N51: =D51+G51+J51 -> 119200
B52: 'ks"k &@$¼7¼v½ ,oa ;ksx 7¼c½ dk½ | Q52: #- | R52: =N49-N51 -> 144800 | S52: =N49-D51-J51 -> 174800
B53: dqy 'ks"k &@$¼6,oa 7½ | Q53: #- | R53: =R48+R52 -> 1280371 | S53: =S48+S52 -> 1360371
A54: 8 | B54: cpr [kkrs ij C;kt | Q54: #- | R54: ='Data Entry'!$E$24+'Data Entry'!$E$25 -> 5000 | S54: ='Data Entry'!$E$24+'Data Entry'!$E$25 -> 5000
A55: 9 | B55: vU; vk; | R55: ='Data Entry'!$Q$25 -> 0 | S55: ='Data Entry'!$Q$25 -> 0
A56: 10 | B56: ldy vk; ;ksx ¼8$9½ | Q56: #- | R56: =R53+R54+R55 -> 1285371 | S56: =S53+S54+S55 -> 1365371
A57: 11 | B57: ?kVkb;s dVkSSfr;k¡ %& /kkjk US 80C, 80CCC,80CCD (1)
B58: (A) vf/kdre lhek 1]50]000@& ¼/kkjk 80CCE ½ ] ¼/kkjk 80CCD (2), ds vykok
B59: (i) | C59: jkT; chek ¼SI) | G59: #- | H59: =Salary!O29 -> 84000 | I59: (x) | J59: ljdkjh isa'ku ;kstuk esa va'knku ECPF vf/kdre osru dk 10%¼/kkjk 80ccd½ | O59: #- | P59: =IF(AND($G$2="NPS",'Data Entry'!$N$48="YES"),T30,IF($G$2="NPS",Salary!$M$29,0)) -> 0
B60: (ii) | C60: thou chek izhfe;e ¼LIC) | G60: #- | H60: =Salary!T29+'Data Entry'!E31 -> 11791 | I60: (xi) | J60: isa'ku Iyku gsrq va'knku¼/kkjk 80ccc½ | O60: #- | P60: ='Data Entry'!Q27 -> 0
B61: (iii) | C61: jk"Vªh; cpr i= ¼NSC) | G61: #- | H61: ='Data Entry'!E35 -> 0 | I61: (xii) | J61: jk"Vªh; cpr i= ij vnr C;kt | O61: #- | P61: ='Data Entry'!E36 -> 0
B62: (iv) | C62: yksd Hkfo"; fuf/k ¼PPF) | G62: #- | H62: ='Data Entry'!E37 -> 1000 | I62: (xiii) | J62: V;w'ku Qhl | O62: #- | P62: ='Data Entry'!E33 -> 60000
B63: (v) | C63: jk"Vªh; cpr Ldhe ¼NSS) | G63: #- | H63: ='Data Entry'!E38 -> 0 | I63: (xiv) | J63: bfDoVh fyad lsfoax Ldhe | O63: #- | P63: ='Data Entry'!Q36 -> 0
B64: (vi) | C64: lkekU; izko/kk;h fuf/k ¼GPF)/GPF2004 | G64: #- | H64: =IF($G$2="OPS",Salary!M29,IF(Assesment!U29="YES",Salary!N29,0)) -> 83080 | I64: (xv) | J64: LFkfxr okf"kZdh ¼Defferred Annuty) | O64: #- | P64: ='Data Entry'!Q37 -> 0
B65: (vii) | C65: lkewfgd chek izhfe;e ¼G.Ins.) | G65: #- | H65: =Salary!V29 -> 220 | I65: (xvi) | J65: ih-,y-vkbZ- ¼PLI) | O65: #- | P65: ='Data Entry'!E32 -> 0
B66: (viii) | C66: ;w- ,y- vkbZ- ih-@okf"kZd Iyku | G66: #- | H66: ='Data Entry'!E34 -> 0 | I66: (xvii) | J66: vU; tekjkf'k ¼/kkjk 80 lh ds vUrxZr½ | O66: #- | P66: ='Data Entry'!Q26 -> 0
B67: (ix) | C67: x`g _.k fdLr ¼HBA Premium) | G67: #- | H67: =Salary!R29+'Data Entry'!E29 -> 40000 | I67: (xviii) | J67: lqdU;k le`f) ;kstuk esa tek jkf'k | O67: #- | P67: ='Data Entry'!E39 -> 0
B68: ;ksx ( i ls xviii ) | O68: #- | P68: =SUM(H59:H67)+SUM(P59:P67) -> 280091
B69: vf/kdre dVkSrh dh jkf'k 1-50 yk[k #i, rd | Q69: #- | R69: =IF(P68<150001,ROUND(P68,0),150000) -> 150000 | S69: 0
B70: (B) ?kVkb;s& /kkjk 80CCD(2) fu;ksDrk }kjk isa'ku va'knku dh jkf'k ¼vf/kdre osru dk 10%) i`Fkd ls NwV | R70: =IF($G$2="NPS",Salary!M29,0) -> 0 | S70: =R70 -> 0
B71: (C) ?kVkb;s & /kkjk 80CCD (1B) uohu isa'ku ;kstuk esa vfrfjDr va'knku ¼vf/kdre :- 50]000) | Q71: #- | R71: ='Data Entry'!Q28 -> 0 | S71: 0
B72: ;ksx 11(A+B+C) | Q72: #- | R72: =SUM(R69:R71) -> 150000 | S72: =SUM(S69:S71) -> 0
B73: vU; dVkSfr;k¡
A74: 12 | B74: 1-/kkjk 80 D ,fpfdRlk chek izhfe;e ¼Lo;a]ifr@iRuh o cPpksa ds fy, : 25000] ekrk&firk ds fy, : 25000]lhfu;j flVhtu : 50000½ | Q74: #- | R74: =IF('Data Entry'!Q29="",0,IF(M89=1,MIN('Data Entry'!Q29,25000),MIN('Data Entry'!Q29,50000))) -> 0 | S74: 0
A75: 13 | B75: 2- /kkjk 80DD fodykax vkfJrksa ds fpfdRlk mipkj ¼vf/kdre 75]000 rFkk 80% ;k vf/kd fodykaxrk 125]000½ | Q75: #- | R75: ='Data Entry'!Q30 -> 0 | S75: 0
A76: 14 | B76: 3- /kkjk 80DDB fof'k"V jksaxksa ds mipkj gsrq dVkSrh ¼vf/kdre : 40]000] lhfu;j flVhtu gsrq : 100]000½ | Q76: #- | R76: =IF('Data Entry'!Q31="",0,IF(Master!M89=1,MIN('Data Entry'!Q31,40000),MIN('Data Entry'!Q31,100000))) -> 0 | S76: 0
A77: 15 | B77: 4- /kkjk 80E mPp f'k{kk gsrq fy, _.k dk C;kt | Q77: #- | R77: ='Data Entry'!Q32 -> 0 | S77: 0
A78: 16 | B78: 5- /kkjk 80G /kekZFkZ laLFkkvksa vkfn dks fn;s nku ¼ d Js.kh esa 100 izfr'kr ,oa [k Js.kh esa 50 izfr'kr½ | Q78: #- | R78: ='Data Entry'!Q33+Salary!W29 -> 51044 | S78: 0
A79: 17 | B79: 6- /kkjk 80U LFkkbZ :i ls 'kkjhfjd vleFkZrrk dh n'kk esa ¼vf/kdre 75]000 rFkk vf/kfu;e 1995ds vuqlkj 125]000½ | Q79: #- | R79: ='Data Entry'!Q34 -> 0 | S79: 0
A80: 18 | B80: 7- /kkjk 80 TTA cpr [kkrs ij vf/kdre C;kt :- 10]000 194(IA) | Q80: #- | R80: =IF('Data Entry'!E24="",0,IF(M89=1,MIN('Data Entry'!E24,10000),0)) -> 5000 | S80: 0
B81: 8- /kkjk 80 TTB ofj"B ukxfjdksa dks lHkh C;kt ij vf/kdre 50000:- /kkjk194(IA) | R81: =IF('Data Entry'!E25="",0,IF(M89=1,0,MIN('Data Entry'!E25,50000))) -> 0 | S81: 0
A82: 19 | B82: 9- /kkjk 80 GGA vuqeksfnr oSKkfud] lkekftd] xzkeh.k fodkl vkfn gsrq fn;k x;k nku | Q82: #- | R82: ='Data Entry'!Q35 -> 0 | S82: 0
B83: dqy ;ksx ¼ 12 ls 19 rd ½ | Q83: #- | R83: =SUM(R74:R82) -> 56044 | S83: =SUM(S74:S82) -> 0
A84: 20 | B84: dqy dVkSrh ( 11 + 12 TO19) | Q84: #- | R84: =R72+R83 -> 206044 | S84: =S72+S83 -> 0
A85: 21 | B85: dj ;ksX; vk; ( 10 - 13 ) | Q85: #- | R85: =R56-R84 -> 1079327 | S85: =S56-S84 -> 1365371
A86: 15 | B86: dqy vk; dh jkf'k dks lEiw.kZ djuk ¼ nl ds xq.kd esa ½ /kkjk 288A | Q86: #- | R86: =ROUND(R85,-1) -> 1079330 | S86: =ROUND(S85,-1) -> 1365370
J87: =Assesment!C49 -> कुल आय की राशि को सम्पूर्ण करना ( दस के गुणक में ) धारा 288A
B88: OLD REGIME | N88: NEW REGIME | R88: OLD REGIME | S88: NEW REGIME
B89: ,d O;fDr dj nkrk | K89: category for tax calculation | M89: 1 | Q89: AMOUNT | R89: =R86 -> 1079330 | S89: =S86 -> 1365370
C90: AMOUNT | E90: ofj"B ukxfjd ¼60 ls 80 o"kZ rd½ | J90: 80 o"kZ ;k vf/kd vk;q | N90: 0 - 2,50,000 | P90: 0 | Q90: =IF($S$89>250000,250000,$S$89) -> 250000 | S90: =ROUND(Q90*P90,0) -> 0
A91: 2,50,000 rd | C91: =IF($R$89>250000,250000,$R$89) -> 250000 | D91: 0 | E91: 3,00,000 rd | H91: =IF($R$89>300000,300000,$R$89) -> 300000 | I91: 0 | N91: 2,50,001 - 5,00,000 | P91: 0.05 | Q91: =IF($S$89>500000,250000,IF($S$89>250000,$S$89-250000,0)) -> 250000 | R91: =IF($M$89=1,C91*D91,IF($M$89=2,H91*I91,L91*M91)) -> 0 | S91: =ROUND(Q91*P91,0) -> 12500
A92: 2,50,001-5,00,000 | C92: =IF($R$89>500000,250000,IF($R$89>250000,$R$89-250000,0)) -> 250000 | D92: 0.05 | E92: 3,00,001-5,00,000 | H92: =IF($R$89>500000,200000,IF($R$89>300000,$R$89-300000,0)) -> 200000 | I92: 0.05 | J92: 5,00,000 rd | L92: =IF($R$89>500000,500000,$R$89) -> 500000 | M92: 0 | N92: 5,00,001 - 7,50,000 | P92: 0.1 | Q92: =IF($S$89>750000,250000,IF($S$89>500000,$S$89-500000,0)) -> 250000 | R92: =IF($M$89=1,C92*D92,IF($M$89=2,H92*I92,L92*M92)) -> 12500 | S92: 25000
A93: 5,00,001-10,00,000 | C93: =IF($R$89>1000000,500000,IF($R$89>500000,$R$89-500000,0)) -> 500000 | D93: 0.2 | E93: 5,00,001-10,00,000 | H93: =IF($R$89>1000000,500000,IF($R$89>500000,$R$89-500000,0)) -> 500000 | I93: 0.2 | J93: 5,00,001-10,00,000 | L93: =IF($R$89>1000000,500000,IF($R$89>500000,$R$89-500000,0)) -> 500000 | M93: 0.2 | N93: 7,50,001 - 10,00,000 | P93: 0.15 | Q93: =IF($S$89>1000000,250000,IF($S$89>750000,$S$89-750000,0)) -> 250000 | R93: 100000 | S93: 37500
A94: 10,00,000 ls vf/kd | C94: =IF($R$89>1000000,IF($R$89>1000000,$R$89-1000000,0),0) -> 79330 | D94: 0.3 | E94: 10,00,000 ls vf/kd | H94: =IF($R$89>1000000,IF($R$89>1000000,$R$89-1000000,0),0) -> 79330 | I94: 0.3 | J94: 10,00,000 ls vf/kd | L94: =IF($R$89>1000000,IF($R$89>1000000,$R$89-1000000,0),0) -> 79330 | M94: 0.3 | N94: 10,00,001- 12,50,000 | P94: 0.2 | Q94: =IF($S$89>1250000,250000,IF($S$89>1000000,$S$89-1000000,0)) -> 250000 | R94: 23799 | S94: =ROUND(Q94*P94,0) -> 50000
A95: TOTAL | C95: =SUM(C91:C94) -> 1079330 | H95: =SUM(H91:H94) -> 1079330 | L95: =SUM(L91:L94) -> 1079330 | N95: 12,50,001- 15,00,000 | P95: 0.25 | Q95: =IF($S$89>1500000,250000,IF($S$89>1250000,$S$89-1250000,0)) -> 115370 | S95: 28843
N96: Above 15,00,000 | P96: 0.3 | Q96: =IF($S$89>1500000,IF($S$89>1500000,$S$89-1500000,0),0) -> 0 | S96: 0
O97: TOTAL TAX | R97: =SUM(R91:R95) -> 136299 | S97: =SUM(S91:S96) -> 153843
G98: NwV ?kkjk 87¼A½ ¼2-50 yk[k ls 5-00 yk[k rd dh dj ;ksX; vk; ij vk;dj dh NwV vf/kdre :- 12500 rd½ | R98: =IF($R$85<=500000,IF($R$97<12500,$R$97,12500),0) -> 0 | S98: =IF($S$85<=500000,IF($S$97<12500,$S$97,12500),0) -> 0
P99: NET TAX | R99: =R97-R98 -> 136299 | S99: =S97 -> 153843
B100: ¼2½ NwV ?kkjk 87¼A½ ¼2-50 yk[k ls 5-00 yk[k rd dh dj ;ksX; vk; ij vk;dj dh NwV vf/kdre :- 12500 rd½

Sheet HRA
F3: HRA EXEMPTION CALCULATOR
B4: PARTIALY HRA
B5: MONTHS | C5: "YES"/NO | D5: PAY+DA | E5: HRA | I5: CITY TYPE | J5: NON METRO | L5: IF YOU ARE NOT ELIGIBLE TO GET HRA EXEMPTION FOR COMPLETE YEAR THEN CHOOSE PARTIALLY FROM Data Entry SHEET
B6: MARCH 20 | C6: YES | D6: =IF(C6="YES",SUM(Salary!D10:E10),0) -> 42856 | E6: =IF(C6="YES",Salary!F10,0) -> 2930 | H6: Choose Metro for Delhi,Mumbai,Chennai,Kolkata and for others Non Metro
B7: APRIL 20 | C7: YES | D7: =IF(C7="YES",SUM(Salary!D11:E11),0) -> 88569 | E7: =IF(C7="YES",Salary!F11,0) -> 6056 | G7: HRA exempted from income tax | M7: ='Data Entry'!F17 -> Yearly
B8: MAY 20 | C8: YES | D8: =IF(C8="YES",SUM(Salary!D12:E12),0) -> 88569 | E8: =IF(C8="YES",Salary!F12,0) -> 6056 | J8: वेतन (PAY+DA) | L8: =IF($M$7="Yearly",Master!E20,"-") -> 1038643 | M8: =IF($M$7="Partially",Master!H20,"-") -> -
B9: JUNE 20 | C9: YES | D9: =IF(C9="YES",SUM(Salary!D13:E13),0) -> 88569 | E9: =IF(C9="YES",Salary!F13,0) -> 6056 | G9: Details | L9: =IF(M7="Yearly","Complete year HRA exemption","-") -> Complete year HRA exemption | M9: =IF(M7="Partially","Partial HRA exemption","-") -> -
B10: JULY 20 | C10: YES | D10: =IF(C10="YES",SUM(Salary!D14:E14),0) -> 91260 | E10: =IF(C10="YES",Salary!F14,0) -> 6240 | H10: मकान किराया का वास्तविक भुगतान | L10: =IF(M7="Yearly",'Data Entry'!C17,"-") -> 0 | M10: =IF(M7="Partially",'Data Entry'!C17,"-") -> -
B11: AUGUST 20 | C11: YES | D11: =IF(C11="YES",SUM(Salary!D15:E15),0) -> 91260 | E11: =IF(C11="YES",Salary!F15,0) -> 6240 | G11: A | H11: प्राप्त मकान किराया भत्ता (HRA) | L11: =IF(M7="Yearly",Master!E21,"-") -> 71018 | M11: =IF(M7="Partially",E18,"-") -> -
B12: SEPTEMBER 20 | C12: YES | D12: =IF(C12="YES",SUM(Salary!D16:E16),0) -> 91260 | E12: =IF(C12="YES",Salary!F16,0) -> 6240 | G12: B | H12: वेतन (मूल +मंहगाई भत्ता ) के 10% से अधिक मकान किराया भुगतान की राशि | L12: =IF(M7="Yearly",IF(Master!$E$24>0,Master!$E$24,0),"-") -> 0 | M12: =IF(M7="Partially",IF(Master!$H$24>0,Master!$H$24,0),"-") -> -
B13: OCTOBER 20 | C13: YES | D13: =IF(C13="YES",SUM(Salary!D17:E17),0) -> 91260 | E13: =IF(C13="YES",Salary!F17,0) -> 6240 | G13: C | H13: =IF(J5="NON METRO","वेतन (मूल +मंहगाई भत्ता ) का 40%","वेतन (मूल +मंहगाई भत्ता ) का 50%") -> वेतन (मूल +मंहगाई भत्ता ) का 40% | L13: =IF(M7="Yearly",IF(Master!$E$25>0,Master!$E$25,0),"-") -> 415457 | M13: =IF(M7="Partially",IF(Master!$E$25>0,Master!$E$25,0),"-") -> -
B14: NOVEMBER 20 | C14: YES | D14: =IF(C14="YES",SUM(Salary!D18:E18),0) -> 91260 | E14: =IF(C14="YES",Salary!F18,0) -> 6240 | G14: HRA exemption amount from Income Tax(Minimum amongA,B,C) | L14: =IF(M7="Yearly",Master!$E$27,"-") -> 0 | M14: =MIN(M11,M12,M15) -> 0
B15: DECEMBER 20 | C15: YES | D15: =IF(C15="YES",SUM(Salary!D19:E19),0) -> 91260 | E15: =IF(C15="YES",Salary!F19,0) -> 6240
B16: JANUARY 21 | C16: YES | D16: =IF(C16="YES",SUM(Salary!D20:E20),0) -> 91260 | E16: =IF(C16="YES",Salary!F20,0) -> 6240
B17: FEBRUARY 21 | C17: YES | D17: =IF(C17="YES",SUM(Salary!D21:E21),0) -> 91260 | E17: =IF(C17="YES",Salary!F21,0) -> 6240
D18: =SUM(D6:D17) -> 1038643 | E18: =SUM(E6:E17) -> 71018
B19: IF YOU ARE NOT ELIGIBLE TO GET HRA EXEMPTION FOR COMPLETE YEAR THEN CHOOSE PARTIALLY HRA "YES" FROM DROPDOWN

Sheet NSC INTT
A2: NSC INTEREST CALCULATION (GIVE AMOUNT, PERIOD-WISE)
A3: PURCHASE PERIOD | B3: Time of Purchase of NSC-(VIII Issue)
B4: During 2012-13 | D4: During 2013-14 to 2015-16 | F4: During 01-04-2016 to30-09-2016 | H4: During 01-10-2016 to31-03-2017 | J4: During 01-04-2017 to30-06-2017 | L4: During 01-07-2017 to31-12-2017 | N4: During 01-01-2018 to30-09-2018 | P4: During 01-10-2018 to30-06-2019 | R4: During 01-07-2019 to11-12-2019 | T4: During 12-12-2019 to31-03-2020
A5: Period (in years) | B5: Amount | C5: Interest | D5: Amount | E5: Interest | F5: Amount | G5: Interest | H5: Amount | I5: Interest | J5: Amount | K5: Interest | L5: Amount | M5: Interest | N5: Amount | O5: Interest | P5: Amount | Q5: Interest | R5: Amount | S5: Interest | T5: Amount | U5: Interest
A6: 1st year | C6: =B6*8.78% -> 0 | D6: 100 | E6: =D6*8.68% -> 8.68 | G6: =F6*8.1% -> 0 | I6: =H6*8% -> 0 | K6: =J6*7.9% -> 0 | M6: =L6*7.8% -> 0 | O6: =N6*7.6% -> 0 | P6: 100 | Q6: =P6*8% -> 8 | R6: 100 | S6: =R6*7.9% -> 7.9 | T6: 100 | U6: =T6*7.9% -> 7.9
A7: 2nd year | C7: =B7*9.56% -> 0 | E7: =D7*9.43% -> 0 | G7: =F7*8.76% -> 0 | I7: =H7*8.64% -> 0 | J7: 5000 | K7: =J7*8.52% -> 426 | M7: =L7*8.41% -> 0 | N7: 100 | O7: =N7*8.18% -> 8.18 | Q7: =P7*8.64% -> 0 | S7: =R7*8.52% -> 0 | U7: =T7*8.52% -> 0
A8: 3rd year | C8: =B8*10.4% -> 0 | E8: =D8*10.25% -> 0 | G8: =F8*9.46% -> 0 | H8: 100 | I8: =H8*9.33% -> 9.33 | J8: 100 | K8: =J8*9.2% -> 9.2 | M8: =L8*9.06% -> 0 | O8: =N8*8.8% -> 0 | Q8: =P8*9.33% -> 0 | S8: =R8*9.2% -> 0 | U8: =T8*9.2% -> 0
A9: 4th year | C9: =B9*11.31% -> 0 | D9: 100 | E9: =D9*11.14% -> 11.14 | F9: 100 | G9: =F9*10.23% -> 10.23 | I9: =H9*10.08% -> 0 | K9: =J9*9.92% -> 0 | M9: =L9*9.77% -> 0 | O9: =N9*9.47% -> 0 | Q9: =P9*10.08% -> 0 | S9: =R9*9.33% -> 0 | U9: =T9*9.92% -> 0
A10: 5th year | B10: 100 | C10: =B10*12.3% -> 12.3 | E10: =D10*12.11% -> 0 | G10: =F10*11.06% -> 0 | I10: =H10*10.88% -> 0 | K10: =J10*10.71% -> 0 | M10: =L10*10.53% -> 0 | O10: =N10*10.19% -> 0 | Q10: =P10*10.88% -> 0 | S10: =R10*10.74% -> 0 | U10: =T10*10.7% -> 0
A11: Total | C11: =SUM(C6:C10) -> 12.3 | E11: =SUM(E6:E10) -> 19.82 | G11: =SUM(G6:G10) -> 10.23 | I11: =SUM(I6:I10) -> 9.33 | K11: =SUM(K6:K10) -> 435.2 | M11: =SUM(M6:M10) -> 0 | O11: =SUM(O6:O10) -> 8.18 | Q11: =SUM(Q6:Q10) -> 8 | S11: =SUM(S6:S10) -> 7.9 | U11: =SUM(U6:U10) -> 7.9
B14: Time of Purchase of NSC-(IX Issue)
B15: Year for which interest accuues | C15: When Investment made | K15: INTEREST ACCURED ON NSC | N15: =SUM(C11,E11,G11,I11,K11,M11,O11,Q11,S11,S11,U11,D28,F28,H28,) -> 598.72
C16: Before April 1,2012 | E16: During 2012-13 | G16: On or after 01-04-2013
C17: Amount | D17: Interest | E17: Amount | F17: Interest | G17: Amount | H17: Interest | J17: NOTE :- Fill amount of purchased NSC in respective period
B18: 1st year | C18: 100 | D18: =C18*8.89% -> 8.89 | F18: =E18*9.1% -> 0 | H18: =G18*8.99% -> 0
B19: 2nd year | C19: 200 | D19: =C19*9.68% -> 19.36 | F19: =E19*9.93% -> 0 | H19: =G19*9.8% -> 0
B20: 3rd year | D20: =C20*10.54% -> 0 | F20: =E20*10.83% -> 0 | H20: =G20*10.68% -> 0
B21: 4th year | D21: =C21*11.48% -> 0 | F21: =E21*11.81% -> 0 | H21: =G21*11.64% -> 0
B22: 5th year | C22: 100 | D22: =C22*12.5% -> 12.5 | F22: =E22*12.89% -> 0 | H22: =G22*12.69% -> 0
B23: 6th year | D23: =C23*13.61% -> 0 | F23: =E23*14.06% -> 0 | H23: =G23*13.83% -> 0
B24: 7th year | D24: =C24*14.82% -> 0 | F24: =E24*15.34% -> 0 | G24: 100 | H24: =G24*15.08% -> 15.08
B25: 8th year | C25: 100 | D25: =C25*16.13% -> 16.13 | F25: =E25*16.74% -> 0 | H25: =G25*16.43% -> 0
B26: 9th year | D26: =C26*17.57% -> 0 | F26: =E26*18.26% -> 0 | H26: =G26*17.91% -> 0
B27: 10th year | D27: =C27*19.13% -> 0 | F27: =E27*19.92% -> 0 | H27: =G27*19.52% -> 0
B28: Total | D28: =SUM(D18:D27) -> 56.88 | F28: =SUM(F18:F27) -> 0 | H28: =SUM(H18:H27) -> 15.08

Sheet RULES
A1: Brief detail of Information and RULES for(Rates,Deductions,Exemption etc.) ( Mini Ready Reckoner)
B2: Select and click any rule to know the brief detail about the taxation Rules & Informations.
A3: 1 | B3: New Tax Rates for Financial-Year 2020-21, Assessment Year 2021-2022 in Old and New Regime
A4: 2 | B4: Some Exempted Receipts / Special allowances & Perquisite which are not chargable to tax in Old regime
A5: 3 | B5: Some Exempted Income ( to be shown while Return filing)
A6: 4 | B6: T A X R U L E S & O T H E R U S E F U L I N F O R M A T I O N S
A7: I | B7: HRA exemption-u/s 10(13A)
A8: II | B8: Standard deduction u/s 16 (1a) instead of Transport allowance and Medical Reimbursement
A9: III | B9: Reimbursement of Medical bills
A10: IV | B10: u/s(5) LTA Exemption
A11: V | B11: Deduction u/s 24 and Relief u/s 80EE or 80EEA on interest on housing loan.
A12: VI | B12: u/s 80CCE & 80CCD Maximum Exemption
A13: VII | B13: Rajiv Gandhi Equity Savings Scheme
A14: VIII | B14: u/s 80D Medical Insurance
A15: IX | B15: u/s 80DD Deduction in respect of medical treatment of handicapped dependents
A16: X | B16: u/s 80DDB Deduction in respect of medical treatment for specified ailments or diseases
A17: XI | B17: u/s 80E Interest repayment on education loan
A18: XII | B18: u/s 80G Donations given for certain charities
A19: XIII | B19: u/s 80GG If Assesse is not getting HRA, but living in rented house,
A20: XIV | B20: u/s 80U If assesse have a permanent physical disability
A21: XV | B21: u/s 80TTA/80TTB Deduction on interest Income.
A22: 5 | B22: KNOW MORE about DEDUCTION under Section 80-C
A23: a | B23: Qualifying Investments u/s 80CCE
A24: b | B24: Provident Fund (PF) & Voluntary Provident Fund (VPF)
A25: c | B25: Life Insurance Premiums & Unit linked Insurance Plan (ULIP)
A26: d | B26: Public Provident Fund (PPF):
A27: e | B27: National Savings Certificate (NSC):
A28: f | B28: Home Loan Principal Repayment & Stamp Duty and Registration Charges for a home
A29: g | B29: Tuition fees for 2 children
A30: h | B30: Equity Linked Savings Scheme (ELSS)
A31: i | B31: 5-Yr bank fixed deposits (FDs) or 5-Yr post office time deposit (POTD)
A32: j | B32: Pension Funds or Pension Policies
A33: k | B33: Sukanya Samridhi Account
A34: l | B34: Infrastructure Bonds: NABARD rural bonds:
A35: m | B35: Senior Citizen Savings Scheme 2004 (SCSS)
A36: 6 | B36: Allowed Deductions & Exemptions under New Income Tax Regime
B37: TAX RATES as per Old Regime -- for Financial Year 2020-21 & Assesment Year 2021-22
B38: For Individual (MALE & FEMALE) ASSESSE
B39: Net Income Range Income Tax Rates
B40: Up to ₹ 2,50,000 NIL
B41: ₹ 2,50,001 to ₹ 5,00,000 5% on Total Income (-) ₹ 2,50,000
B42: ₹ 5,00,001 to ₹ 10,00,000 ₹12,500+20% of Total Income (-) ₹5,00,000
B43: More than ₹ 10.00,000 ₹1,12,500+30% of Total Income (-) ₹10,00,000
B44: Note- (u/s 87A- A rebate upto ₹ 12500/- for assessee with Income range upto ₹ 5,00,00 will be available in Both Old & New Regime) )
B45: For SENIOR CITIZEN ASSESSE (Above 60 Year ) attaining the age during the year
B46: Net Income Range Income Tax Rates
B47: Up to ₹3,00,000 NIL
B48: ₹3,00,001 to 5,00,000 5% of Total Income(-) ₹3,00,000
B49: ₹5,00,001 to 10,00,000 ₹10,000 +20% of Total Income (-) ₹5,00,000
B50: More than ₹10.00,000 ₹1,10,000 +30% of Total Income (-) ₹10,00,000
B51: Note- (u/s 87A- A rebate upto ₹ 10000/- for assessee with Income range upto ₹ 5,00,000)
B52: For VERY SENIOR CITIZEN ASSESSE (Above 80 Year ) attaining the age during the year
B53: Net Income Range Income Tax Rates
B54: Up to ₹5,00,000 NIL
B55: ₹5,00,001 to ₹10,00,000 20% of Total Income (-) ₹10,00,000
B56: More than ₹10,00,000 ₹1,00,000 +30% of Total Income (-) ₹10,00,000
A57: Back ↑ | B57: Note: 1. Education and Health Cess is 4% of income tax from all Assesse. (as per Finance Act 2018) . 2. Surcharge on income tax @10% for income above ₹50 Lakh & 15% for income above ₹1crore
B58: TAX RATES as per New Regime - for financial Year 2020-21 & Assesment Year 2021-22 ( The new scheme is optional in nature )
B59: For Individual (>60Yrs)., Sr. Citizen (60+Yrs.) & Very Sr. Citizen (80+Yrs.) ASSESSE
B60: Up to – 250000 – Nil
B61: ₹ 2,50,001 to ₹ 5,00,000 5% on Total Income (-) ₹2,50,000
B62: ₹ 5,00,001 to ₹ 7,50,000 ₹12,500+10% of Total Income (-) ₹5,00,000
B63: ₹ 7,50,001 to ₹ 10,00,000 ₹37,500+15% of Total Income (-) ₹7,50,000
B64: ₹ 10,00,001 to ₹ 12,50,000 ₹75,000+20% of Total Income (-) ₹10,00,000
B65: ₹ 12,50,001 to ₹ 15,00,000 ₹1,25,000+25% of Total Income (-) ₹12,50,000
B66: ₹ 15,00,001 & above ₹1,87,500+30% of Total Income (-) ₹15,00,000
A67: Back ↑ | B67: Note- (u/s 87A- A rebate upto ₹ 12500/- for assessee with Income range upto ₹ 5,00,00 will be available in Both Old & New Regime) )
B69: Some Exempted Receipts /Special allowances & Perquisite which are not chargable to tax are
B70: Exempted Receipts - 1. L.T.A (as per Rule)
A71: Back ↑ | B71: Special allowances Exempted u/s 10(14) 1. Uniform Allowance (granted to meet the expenditure incurred on purchase or maintenance of uniform to be worn during performance of Official Duty) 2. Helper Allowance ( granted to meet exependiture incurred on helper for performance of official duty) 3. Academic Allowance (granted for encouraging academic, research & training pursuits) including Newspaper, Generals etc.) 4. Children Education Allowance ( ₹100 P.M. per child / (₹300 for hostel expenditure) Max of 2 children) 5. Convayance allowance ( granted to meet the expenditure incurred on convayance, while performing official duty. . ( Expenditure incured for covering journey between office and residence is not treated as expenditure in performance of official duty. )
B72: Deduction available u/s -16 1.Standard deduction of Rs. 50000/- is granted to all salaried employee.whenever Transport allowance and Medical reimbursement are abolished 2. Entertainment allowance (for Govt Employees) Max ₹5000/- 3. Professional tax - Professional tax paid by employeer is deducted from Gross salary.
B73: Perquisite not chargable to tax
B74: Free food and beverage 1. Food and non-alcoholic beverages provided in working hours in remote area or an offshore instalation are exempted to tax 2. Tea, coffee or non-alcoholic beverages and snaks in working hours are tax free perquisites. 3. Meals (Lunch and / or dinner) in office hours is not taxable. If cost to the employeris ₹50 (or Less) per meal.
B75: Some Exempted Income are ( to be shown while Return filing)
B76: 1. Withdrawal / Maturity / Interest received from PF,PPF,Sukanya Samridhi Account, Life Insurance policy, Agriculture. (Max up to ₹5000/- )
B77: 2 Long Term Capital Gain From Shares
B78: 3. Interest on Saving Bank & Post Office A/c up to ₹ 10,000/- ( Sec-80TTE) for Individual
B79: 4. Interest on Saving Bank & Post Office A/c, FD, RD etc up to ₹ 50,000/- (Sec-80TTE) for Sr. Citizen
B80: Please Note :
B81: (i) Interest earned from all sources are to be included. All interest income (including saving Bank A/C (above ₹10,000 for Individual & ₹50,000 for Sr. Citizen )
A82: Back ↑ | B82: (II) As per clarification from IT department, all perquisites such as rent-free accommodation, company provided car, free or concessional education facilities, employee stock option plan, free club membership, company provided credit card, gift vouchers, meal coupons, hotel stay beyond 15 days, are fully taxable.
A83: Back ↑ | B83: T A X R U L E S & O T H E R U S E F U L I N F O R M A T I O N S for
A84: I | B84: House Rent Allowance exemption-10(13A) = Least amount of anyone (i) 40% of Salary (50%, if house situated in Mumbai, Calcutta, Delhi or Madras) . or (ii) Actual HRA Recived . or (iii) Rent paid minus 10% of salary * Salary= Basic + DA (if part of retirement benefit) + Turnover based Commission Note i. Fully Taxable, if HRA is received by an employee who is living in his own house or if he does not pay any rent ii. It is mandatory for employee to report PAN of the landlord to the employer if rent paid is more than ₹ 1,00,000 [Circular No. 08 /2013 dated 10th October, 2013]. (In case the landlord does not have PAN, employee should submit a declaration stating the same along with the landlord’s details.)
A85: II | B85: Standard deduction of ₹50000/- is allowed to all salaried employee. In Finace act 2019 standard deduction of Rs. 50,000/- has allowed to all salaried employees. But Transport allowance & Medical Reimburement are abolished. Whenever an exemption of up to ₹3200/- per month is cotinue for disabled employees (Blind and Handicapped employees) . Transport Allowance is granted to an employee to meet expenditure on commuting between place of residence and place of duty
A86: III | B86: Reimbursement of Medical bills has withdrawan and not allowed from finance act 2018. Now it has become a part of Standard deduction of Rs. 50,000/-
A87: IV | B87: u/s(5) LTA is exempt to the tune of economy class Train/ Air /Recognised public Transport fare for the family to any destination in India, by the shortest route. LTA can be claimed twice in a block of 4 calendar year. The current block is from 01.01.2018 to 31.12.2021. For claim, it is must to provide originals tickets etc.
A88: V(a) New Change | B88: u/s 24 and 80 EE/ 80EEA There is an Exemption for interest on housing loan.(for Self occupied Residence). If the loan was taken before Apr 1, 1999 exemption is limited to ₹30,000/- per year. If the loan was taken after Apr 1, 1999 exemption is limited to ₹2,00,000/- per year if the house is self-occupied; This exemption is available on accrual basis, which means if interest has accrued, you can claim exemption, irrespective of whether you've paid it or not. 80EE - In finance bill 2016 (an additional rebate of ₹.50.000/- was given to those assesse, who purchase self ocupied single house and loan has sanctioned between 01/04/2016 to 31/03/2018 with maximum value of ₹ 50 Lacs and sanctioned home loan up to 35 Lacs.). The deduction is allowed untill the loan is repaid. Sec 80EEA - In Finance bill 2019 ( a new rebate for purchase first house has been introduced to extend the tax benefit upto Rs. 1,50,000/- for affordable house of stamp duty valued up to Rs. 45 Lacs and loan sanctioned during the period 01/04/2019 to 31/03.2021)
A89: (b) | B89: If you have rented out your house, Whole the interest will be eligible for deduction. (after deducting property tax and standard maintenance expenses from rent recived). But maximum interest allowed for deduction is 2,00,000/- only and rest of interest will be adjust while filing of ITR as carryforward of losses.
A90: VI | B90: u/s 80CCE- Maximum Exemption up to ₹1,50,000/- Investments up to ₹1.5 lac in PF, VPF, PPF, Employee contribution in NPS,Insurance Premium, Housing loan principal repayment, NSC, ELSS, long term bank Fixed Deposit, Post Office Term Deposit, etc. are deductible from the taxable income. There is no limit on individual items, (for example) all 1.5 lac can be invested in NSC or PPF etc.
A91: VII | B91: u/s 80CCD(1): Contribution to NPS (by Employee) The Finance Act, 2015 provides that, The contribution made by the employee to the NPS will be subject to the limit of ₹1,50,000.(Sec 80CCE) Section 80CCD (2): Contribution to NPS (by Employer) - Contribution made by the Central Government or any other employer to NPS shall be excluded while computing the limit of Rs1,50,000 Deduction available for the amount paid or deposited by the employer of the assessee in a pension scheme notified or as may be notified by the Central Government subject to a maximum of 10% of salary in the financial year. Section 80CCD(1B): Additional depoisiting to New Pension Scheme (NPS) account in Banks/PO - It will provide an additional deduction of upto ₹ 50,000 over and above the limit of ₹ 1.50 lakh in respect of contributions made to NPS account.
A92: VIII | B92: u/s 80CCG - Rajiv Gandhi Equity Savings Scheme exemption has been abolished in Fianance Act 2017.
A93: IX | B93: u/s 80D Medical Insurance Premiums+ Critical Insurance cover Premiuma +Health checkup+ CGHS/ SGHS contributions (Mediclaim Insurance & Critical illness Cover from health Insurance Co. or Life Insurance Co. with contribution in CGHS/SGHS & Preventive Health Check upto INR.5000/-) for Self Family & Parents <60 Yrs. or Sr. Citizen. For Very Sr. Citizen abobe 80 Yrs. Expenses on medical treatment. Premium & Health checkup is exempt up to 1.₹. 25000/- for Self & Family less than 60Yrs. 2.₹ 50000/- for Self, Family & Parents below 60 Yrs (25000/-+25000/-) 3. ₹ 75000/ for Self, Family & Parents Sr. Citizen – (25000/-+50000/-) 4. ₹ 50000/- sr. Citizen above 60 Yrs Self & Family
A94: X | B94: u/s 80DD Deduction in respect of medical treatment of handicapped dependents is limited to ₹75,000/- per year if the disability is less than 80% and Rs1,25,000/- per year if the disability is more than 80%
A95: XI | B95: u/s 80DDB Deduction in respect of medical treatment for specified ailments or diseases for the assesse or dependent can be claimed up to ₹40,000/- per year. If the person being treated is a senior citizen (Age 60+), the exemption can go up to ₹1,00,000/- but any amount received under Medical Insurance Policy will be reduced from the amount of deduction allowed. The Diseases and ailments specified under rule 11DD are. (1) Neurological diseases being demetia, dystonia musculorum deformans, motor neuron disease, ataxia, chorea, hemiballismus, aphasia and parkisons disease, (2) cancer, (3) AIDS, (4)Chronic renal failure, (5) hemophilia, and (6) thalassaemia. Note:The assessee will be required to obtain a prescription/Certificate from a specialist doctor whether from Govt or Pvt. for the purpose of availing this deduction.
A96: XII | B96: u/s 80E Interest repayment on education loan (taken for higher education from a university of self & dependents) is completely tax exempt
A97: XIII | B97: u/s 80G Donations given for certain charities are tax exempt.NGO,Trust etc. are exempt to the tune of 50%, whereas Govt funds are 100%. u/s 80GGA - Donations for scientific, social or statistical research or rural development programme or for carrying out an eligible project or scheme or National Urban Poverty Eradication Fund u/s 80GGC -Donation to any political party/electoral trust
A98: XIV New | B98: u/s 80GG If you are not getting HRA, but living in rented house, an exemption is available. This will be calculated as minimum of (25% of total income or rent paid - 10% of total income or ₹ 60,000/- per year)
A99: XV | B99: u/s 80U who suffers from not less than 40 per cent of any disability is eligible for deduction to the extent of ₹ 75,000/- and in case of severe disability to the extent of ₹ 1,25,000/-
A100: XVI | B100: u/s 80TTA/80TTB introduced through Finance Act, 2012. Section 80TTA provides a deduction of up to ₹10,000 on income from interest on saving bank accounts to Individual asessee and Sec 80TTB introduced through Finance Act, 2018. Which provides a deduction of up to ₹50,000 on income from interest Income from bank & Post Offices ( Savings,FD, RD, MIS,SCSS etc. ) to Sr. Citizen asessee
A101: Back ↑ | B101: KNOW MORE about DEDUCTION under Section 80-C and chapter VIA
B102: Section 80C of the Income Tax Act allows certain investments and expenditure to be deduct from total income - One must plan investments well and spread it out across the various instruments specified under this section to avail maximum tax benefit. There are no sub-limits and is irrespective of how much you earn and under which tax bracket you fall. Most of the Income Tax payee try to save tax by saving under Section 80C of the Income Tax Act. However, it is important to know the Section in total. so that one can make best use of the options available for deduction under income tax Act. One important point to note that one can not only save tax by undertaking the specified investments, but some expenditure which you normally incur can also give you the tax exemptions.
A103: Back ↑ | B103: Qualifying Investments u/s 80CCE are
A104: a | B104: Provident Fund (PF) & Voluntary Provident Fund (VPF) PF is automatically deducted from your salary. your contribution [12% of Basic] (i.e., employee’s contribution) is counted towards section 80C investments. You also have the option to contribute additional amounts through voluntary contributions (VPF). Current rate of interest is 8.5% per annum (p.a.) and is tax-free.
A105: b | B105: Life Insurance Premiums: Any amount that you pay towards life insurance premium in Life Insurance Corporation (LIC) or any other Insurance CO.for yourself, your spouse or your children can also be included in Section 80C deduction. If you are paying premium for more than one insurance policy, all the premiums will be included. also premium paid for ULIP will also be treated as Premium paid for Life Insurance Policies. Unit linked Insurance Plan : ULIP stands for Unit linked Saving Schemes. ULIPs cover Life insurance with benefits of equity investments.They have attracted the attention of investors and tax-savers not only because they help us save tax but they also perform well to give decent returns in the long-term. IMP : Total Amount Received at Maturity, Survival Benefits, , Withdrawl in Insurance Policies is Tax Free and fully exempteed u/s 10(10D).
A106: c | B106: Public Provident Fund (PPF): Among all the assured returns small saving schemes, Public Provident Fund (PPF) is one of the best. Current rate of interest is 8% tax-free and the normal maturity period is 15 years Minimum amount of contribution is ₹500 and maximum is ₹1,50,000.(New Change) from Finance Act 2014
A107: d | B107: National Savings Certificate (NSC): National Savings Certificate (NSC) is a 5-Yr small savings instrument eligible for section 80C tax benefit. Rate of interest is 8.58% compounded half-yearly, i.e. If you invest ₹100, it becomes ₹150.90 after five years. The interest accrued every year is liable to tax (i.e. to be included in your taxable income) but the interest is also deemed to be reinvested and thus eligible for section 80C deduction.
A108: e | B108: Home Loan Principal Repayment & Stamp Duty and Registration Charges for a home Loan The Equated Monthly Installment (EMI) that you pay every month to repay your home loan consists of two components – Principal and Interest.The principal component of the EMI qualifies for deduction under Sec 80C. Even the interest component can save you significant income tax – but that would be under Section 24 of the Income Tax Act. The amount you pay as stamp duty when you buy a house, and the amount you pay for the registration of the documents of the house can be claimed as deduction under section 80C in the year of purchase of the house.
A109: f | B109: Tuition fees for 2 children Apart form the above major investments expenses for children’s education (Only Tution Fee (for which you need receipts)), can be claimed as deductions under Sec 80C.
A110: g | B110: Equity Linked Savings Scheme (ELSS): There are some mutual fund (MF) schemes specially created for offering you tax savings, and these are called Equity Linked Savings Scheme, or ELSS. The investments that you make in ELSS are eligible for deduction under Sec 80C.
A111: h | B111: 5-Yr bank fixed deposits (FDs): Tax-saving fixed deposits (FDs) of scheduled banks with tenure of 5 years are also entitled for section 80C deduction. 5-Yr post office time deposit (POTD) scheme: POTDs are similar to bank fixed deposits. Although available for varying time duration like one year, two year, three year and five year, only 5-Yr post-office time deposit (POTD) – which currently offers 7.5 per cent rate of interest –qualifies for tax saving under section 80C. Effective rate works out to be 7.71% per annum (p.a.) as the rate of interest is compounded quarterly but paid annually. The Interest is entirely taxable.
A112: i | B112: Pension Funds or Pension Policies – Section 80CCC: This section – Sec 80CCC – stipulates that an investment in pension funds is eligible for deduction from your income. Section 80CCC investment limit is clubbed with the limit of Section 80C – it means that the total deduction available for 80CCC and 80C is ₹1.5 Lakh.This also means that your investment in pension funds upto ₹1.5 Lakh can be claimed as deduction u/s 80CCC. However, as mentioned earlier, the total deduction u/s 80C and 80CCC can not exceed ₹1.5 Lakh.
A113: j | B113: Infrastructure Bonds: These are also popularly called Infra Bonds. These are issued by infrastructure companies, and not the government. The amount that you invest in these bonds can also be included in Sec 80C deductions. NABARD rural bonds: There are two types of Bonds issued by NABARD (National Bank for Agriculture and Rural Development): NABARD Rural Bonds and Bhavishya Nirman Bonds (BNB). Out of these two, only NABARD Rural Bonds qualify under section 80C.
A114: k | B114: Senior Citizen Savings Scheme 2004 (SCSS): A recent addition to section 80C list, Senior Citizen Savings Scheme (SCSS) is the most lucrative scheme among all the small savings schemes but is meant only for senior citizens. Current rate of interest is 9% per annum payable quarterly. Please note that the interest is payable quarterly instead of compounded quarterly. Thus, unclaimed interest on these deposits won’t earn any further interest. Interest income is chargeable to tax.
A115: l | B115: Sukanya Samridhi Account : Contribution made in a financial year in Sukanya Samriddhi Account will also be eligible for income tax exemption under Section 80C up to a maximum of ₹ 1,50,000/-
A117: Back ↑ | B117: Allowed Deductions & Exemptions under New Income Tax Regime
B118: 1. Deduction under sub-section (2) of section 80CCD (employer contribution on account of employee in notified pension scheme) if added in Gross salary
B119: 2.Transport Allowance granted to Divyang Employee for commute between place of residence and duty
B121: The income tax Exemption on following incomes still available in the new regime
B122: · Death-cum-retirement benefit
B123: · Commutations of pensions
B124: · Leave encashment on retirement
B125: · Amount received on VRS up to Rs 5 lakh
B126: · Employee Provident Fund money
B127: · Money received as scholarship for education
B128: · Cash received as awards constituted in public interest
B129: · Short-term withdrawals and maturity amount from the National Pension Scheme
